Workbook

Sheet Log2021
A1: Month | B1: 1 | C1: 2 | D1: 3 | E1: 4 | F1: 5 | G1: 6 | H1: 7 | I1: 8 | J1: 9 | K1: 10 | L1: 11 | M1: 12 | N1: 13 | O1: 14 | P1: 15 | Q1: 16 | R1: 17 | S1: 18 | T1: 19 | U1: 20 | V1: 21 | W1: 22 | X1: 23 | Y1: 24 | Z1: 25 | AA1: 26 | AB1: 27 | AC1: 28 | AD1: 29 | AE1: 30 | AF1: 31 | AG1: Total
A2: January | AG2: =SUM(B2:AF2) -> 0
A3: February | AG3: =SUM(B3:AF3)+AG2 -> 0
A4: March | AG4: =SUM(B4:AF4)+AG3 -> 0
A5: April | AG5: =SUM(B5:AF5)+AG4 -> 0
A6: May | AG6: 0
A7: June | AG7: 0
A8: July | AG8: 0
A9: August | AG9: 0
A10: September | AG10: 0
A11: October | AG11: 0
A12: November | AG12: 0
A13: December | AG13: 0

Sheet Log 2022
A1: Month | B1: 1 | C1: 2 | D1: 3 | E1: 4 | F1: 5 | G1: 6 | H1: 7 | I1: 8 | J1: 9 | K1: 10 | L1: 11 | M1: 12 | N1: 13 | O1: 14 | P1: 15 | Q1: 16 | R1: 17 | S1: 18 | T1: 19 | U1: 20 | V1: 21 | W1: 22 | X1: 23 | Y1: 24 | Z1: 25 | AA1: 26 | AB1: 27 | AC1: 28 | AD1: 29 | AE1: 30 | AF1: 31 | AG1: Total
A2: January | AG2: ='Log2021'!AG13+SUM('Log 2022'!B2:AF2) -> 0
A3: February | AG3: =AG2+SUM(B3:AF3) -> 0
A4: March | AG4: =AG3+SUM(B4:AF4) -> 0
A5: April | AG5: 0
A6: May | AG6: 0
A7: June | AG7: 0
A8: July | AG8: 0
A9: August | AG9: 0
A10: September | AG10: 0
A11: October | AG11: 0
A12: November | AG12: 0
A13: December | AG13: 0

Sheet Location
A1: Source for this information is | D1: http://www.summitpost.org/appalachian-trail-mileage-chart/593282 | BB1: 28
A3: Distance | B3: Trail Feature | C3: Elevation | D3: State | E3: County
A4: from Springer | F4: Long | G4: Lat | H4: Picture
A5: 0 | B5: Springer Mt. | C5: 3782’ | D5: GA | E5: Fannin | H5: http://www.summitpost.org/mountain/rock/151895/springer-mountain.html
A6: 0.2 | B6: Springer Mt. Shelter (pic) | C6: 3730’ | D6: GA | E6: Fannin | F6: =VLOOKUP(A6,LongLat!$A$2:$H$292,7,TRUE) -> -84.1931 | G6: =VLOOKUP(A6,LongLat!$A$2:$H$292,8,TRUE) -> 34.62915 | H6: http://www.whiteblaze.net/atdatabase/shelters/images/1116.jpg
A7: 1 | B7: USFS 42 | C7: 3350’ | D7: GA | E7: Fannin | F7: =VLOOKUP(A7,LongLat!$A$2:$H$292,7,TRUE) -> -84.1931 | G7: =VLOOKUP(A7,LongLat!$A$2:$H$292,8,TRUE) -> 34.62915
A8: 2.8 | B8: Stover Creek Shelter (pic) | C8: 2870’ | D8: GA | E8: Fannin | F8: =VLOOKUP(A8,LongLat!$A$2:$H$292,7,TRUE) -> -84.1999 | G8: =VLOOKUP(A8,LongLat!$A$2:$H$292,8,TRUE) -> 34.64945 | H8: http://whiteblaze.net/forum/vbg/files/1/6/4/1/DSCN0461.JPG
A9: 3.8 | B9: Stover Creek | C9: 2660’ | D9: GA | E9: Fannin | F9: =VLOOKUP(A9,LongLat!$A$2:$H$292,7,TRUE) -> -84.1999 | G9: =VLOOKUP(A9,LongLat!$A$2:$H$292,8,TRUE) -> 34.64945
A10: 4.3 | B10: Three Forks, USFS 58 | C10: 2530’ | D10: GA | E10: Fannin | F10: =VLOOKUP(A10,LongLat!$A$2:$H$292,7,TRUE) -> -84.1999 | G10: =VLOOKUP(A10,LongLat!$A$2:$H$292,8,TRUE) -> 34.64945 | H10: http://2.bp.blogspot.com/_qoImU6KwvUs/TSAr1qqII0I/AAAAAAAAAMc/MomciAivdHs/s1600/Appalachian+Trail+trip+2009+063.JPG
A11: 5.1 | B11: Trail to Long Creek Falls | C11: 2800’ | D11: GA | E11: Fannin | F11: =VLOOKUP(A11,LongLat!$A$2:$H$292,7,TRUE) -> -84.1999 | G11: =VLOOKUP(A11,LongLat!$A$2:$H$292,8,TRUE) -> 34.64945 | H11: http://www.summitpost.org/image/216145/382122/long-creek-falls.html
A12: 6 | B12: Logging Road | C12: 3000’ | D12: GA | E12: Fannin | F12: =VLOOKUP(A12,LongLat!$A$2:$H$292,7,TRUE) -> -84.1999 | G12: =VLOOKUP(A12,LongLat!$A$2:$H$292,8,TRUE) -> 34.64945
A13: 7.8 | B13: Hawk Mountain Shelter (pic) | C13: 3200’ | D13: GA | E13: Fannin | F13: =VLOOKUP(A13,LongLat!$A$2:$H$292,7,TRUE) -> -84.1364 | G13: =VLOOKUP(A13,LongLat!$A$2:$H$292,8,TRUE) -> 34.66583 | H13: http://www.panoramio.com/photo/8842569
A14: 8.3 | B14: Hightower Gap, USFS 42/69 | C14: 2854’ | D14: GA | E14: Fannin | F14: =VLOOKUP(A14,LongLat!$A$2:$H$292,7,TRUE) -> -84.1364 | G14: =VLOOKUP(A14,LongLat!$A$2:$H$292,8,TRUE) -> 34.66583 | H14: http://assets.alltrails.com/uploads/photo/image/10184611/extra_large_e72b38a21ec68bfee0d611f2ec20bc34.jpg
A15: 10.2 | B15: Horse Gap | C15: 2673’ | D15: GA | E15: Fannin | F15: =VLOOKUP(A15,LongLat!$A$2:$H$292,7,TRUE) -> -84.1364 | G15: =VLOOKUP(A15,LongLat!$A$2:$H$292,8,TRUE) -> 34.66583 | H15: http://farm3.static.flickr.com/2103/3538610901_be600a8d77_b.jpg
A16: 11.2 | B16: Sassafras Mt. | C16: 3300’ | D16: GA | E16: Lumpkin | F16: =VLOOKUP(A16,LongLat!$A$2:$H$292,7,TRUE) -> -84.1364 | G16: =VLOOKUP(A16,LongLat!$A$2:$H$292,8,TRUE) -> 34.66583 | H16: http://www.summitpost.org/mountain/rock/198668/sassafras-mountain.html
A17: 11.8 | B17: Cooper Gap, USFS 42/80 | C17: 2800’ | D17: GA | E17: Lumpkin | F17: =VLOOKUP(A17,LongLat!$A$2:$H$292,7,TRUE) -> -84.1364 | G17: =VLOOKUP(A17,LongLat!$A$2:$H$292,8,TRUE) -> 34.66583
A18: 12.4 | B18: Justus Mt. | C18: 3224’ | D18: GA | E18: Lumpkin | F18: =VLOOKUP(A18,LongLat!$A$2:$H$292,7,TRUE) -> -84.1364 | G18: =VLOOKUP(A18,LongLat!$A$2:$H$292,8,TRUE) -> 34.66583
A19: 13.8 | B19: Justus Creek | C19: 2550’ | D19: GA | E19: Lumpkin | F19: =VLOOKUP(A19,LongLat!$A$2:$H$292,7,TRUE) -> -84.1364 | G19: =VLOOKUP(A19,LongLat!$A$2:$H$292,8,TRUE) -> 34.66583
A20: 15.1 | B20: Gooch Mountain Shelter (pic) | C20: 3000’ | D20: GA | E20: Lumpkin | F20: =VLOOKUP(A20,LongLat!$A$2:$H$292,7,TRUE) -> -84.0343 | G20: =VLOOKUP(A20,LongLat!$A$2:$H$292,8,TRUE) -> 34.6532 | H20: http://whiteblaze.net/forum/vbg/files/4/1/ga_-_gooch_mountain_shelter.jpg
A21: 16.5 | B21: Gooch Gap, USFS 42 | C21: 2784’ | D21: GA | E21: Lumpkin | F21: =VLOOKUP(A21,LongLat!$A$2:$H$292,7,TRUE) -> -84.0343 | G21: =VLOOKUP(A21,LongLat!$A$2:$H$292,8,TRUE) -> 34.6532
A22: 18.7 | B22: Ramrock Mt. | C22: 3260’ | D22: GA | E22: Lumpkin | F22: =VLOOKUP(A22,LongLat!$A$2:$H$292,7,TRUE) -> -84.0343 | G22: =VLOOKUP(A22,LongLat!$A$2:$H$292,8,TRUE) -> 34.6532 | H22: http://www.flickr.com/photos/tsd/3806159170/
A23: 20.1 | B23: Woody Gap, GA 60 | C23: 3150’ | D23: GA | E23: Lumpkin | F23: =VLOOKUP(A23,LongLat!$A$2:$H$292,7,TRUE) -> -84.0343 | G23: =VLOOKUP(A23,LongLat!$A$2:$H$292,8,TRUE) -> 34.6532 | H23: http://www.panoramio.com/photo/22465809
A24: 21.1 | B24: Big Cedar Mt. | C24: 3737’ | D24: GA | E24: Lumpkin | F24: =VLOOKUP(A24,LongLat!$A$2:$H$292,7,TRUE) -> -84.0343 | G24: =VLOOKUP(A24,LongLat!$A$2:$H$292,8,TRUE) -> 34.6532 | H24: http://www.panoramio.com/photo/10488057
A25: 22.4 | B25: Dan Gap | C25: 3300’ | D25: GA | E25: Union | F25: =VLOOKUP(A25,LongLat!$A$2:$H$292,7,TRUE) -> -84.0343 | G25: =VLOOKUP(A25,LongLat!$A$2:$H$292,8,TRUE) -> 34.6532
A26: 25.2 | B26: Burnett Field Mt. | C26: 3480’ | D26: GA | E26: Union | F26: =VLOOKUP(A26,LongLat!$A$2:$H$292,7,TRUE) -> -84.0343 | G26: =VLOOKUP(A26,LongLat!$A$2:$H$292,8,TRUE) -> 34.6532
A27: 25.7 | B27: Jarrard Gap | C27: 3250’ | D27: GA | E27: Union | F27: =VLOOKUP(A27,LongLat!$A$2:$H$292,7,TRUE) -> -84.0343 | G27: =VLOOKUP(A27,LongLat!$A$2:$H$292,8,TRUE) -> 34.6532
A28: 27 | B28: Woods Hole Shelter (pic) | C28: 3600’ | D28: GA | E28: Union | F28: =VLOOKUP(A28,LongLat!$A$2:$H$292,7,TRUE) -> -83.955 | G28: =VLOOKUP(A28,LongLat!$A$2:$H$292,8,TRUE) -> 34.73713 | H28: http://www.flickr.com/photos/61273142@N00/124688117/
A29: 27.1 | B29: Bird Gap, Freeman Trail | C29: 3650’ | D29: GA | E29: Union | F29: =VLOOKUP(A29,LongLat!$A$2:$H$292,7,TRUE) -> -83.955 | G29: =VLOOKUP(A29,LongLat!$A$2:$H$292,8,TRUE) -> 34.73713 | H29: http://www.flickr.com/photos/trancemist/3513186279/
A30: 27.5 | B30: Slaughter Creek Campsite | C30: 3800’ | D30: GA | E30: Union | F30: =VLOOKUP(A30,LongLat!$A$2:$H$292,7,TRUE) -> -83.955 | G30: =VLOOKUP(A30,LongLat!$A$2:$H$292,8,TRUE) -> 34.73713 | H30: http://whiteblaze.net/forum/vbg/files/2/7/8/5/appalachian_trail_09_126.jpg
A31: 28.3 | B31: Blood Mt. & Shelter (pic) | C31: 4450’ | D31: GA | E31: Union | F31: =VLOOKUP(A31,LongLat!$A$2:$H$292,7,TRUE) -> -83.9375 | G31: =VLOOKUP(A31,LongLat!$A$2:$H$292,8,TRUE) -> 34.73996 | H31: http://www.summitpost.org/view_object.php?object_id=268713&context_id=383841
A32: 29.7 | B32: Flatrock Gap, Byron Reese Memorial Trail | C32: 3450’ | D32: GA | E32: Union | F32: =VLOOKUP(A32,LongLat!$A$2:$H$292,7,TRUE) -> -83.9375 | G32: =VLOOKUP(A32,LongLat!$A$2:$H$292,8,TRUE) -> 34.73996
A33: 30.7 | B33: Neels Gap, US 19/129 | C33: 3125’ | D33: GA | E33: Union | F33: =VLOOKUP(A33,LongLat!$A$2:$H$292,7,TRUE) -> -83.9375 | G33: =VLOOKUP(A33,LongLat!$A$2:$H$292,8,TRUE) -> 34.73996 | H33: http://www.summitpost.org/image/426169/150881/at-at-wasaliyi-inn.html
A34: 31.8 | B34: Bull Gap | C34: 3690’ | D34: GA | E34: Union | F34: =VLOOKUP(A34,LongLat!$A$2:$H$292,7,TRUE) -> -83.9375 | G34: =VLOOKUP(A34,LongLat!$A$2:$H$292,8,TRUE) -> 34.73996 | H34: http://www.pinhotitrailalliance.org/images/0-0bullgap.jpg
A35: 32.2 | B35: Levelland Mt. | C35: 3942’ | D35: GA | E35: Union | F35: =VLOOKUP(A35,LongLat!$A$2:$H$292,7,TRUE) -> -83.9375 | G35: =VLOOKUP(A35,LongLat!$A$2:$H$292,8,TRUE) -> 34.73996
A36: 32.8 | B36: Swaim Gap | C36: 3470’ | D36: GA | E36: Union | F36: =VLOOKUP(A36,LongLat!$A$2:$H$292,7,TRUE) -> -83.9375 | G36: =VLOOKUP(A36,LongLat!$A$2:$H$292,8,TRUE) -> 34.73996
A37: 33.5 | B37: Rock Spring Top | C37: 3520’ | D37: GA | E37: Union | F37: =VLOOKUP(A37,LongLat!$A$2:$H$292,7,TRUE) -> -83.9375 | G37: =VLOOKUP(A37,LongLat!$A$2:$H$292,8,TRUE) -> 34.73996
A38: 34 | B38: Corbin Horse Stamp | C38: 3620’ | D38: GA | E38: Union | F38: =VLOOKUP(A38,LongLat!$A$2:$H$292,7,TRUE) -> -83.9375 | G38: =VLOOKUP(A38,LongLat!$A$2:$H$292,8,TRUE) -> 34.73996
A39: 34.1 | B39: Wolf Laurel Top | C39: 3766’ | D39: GA | E39: Union | F39: =VLOOKUP(A39,LongLat!$A$2:$H$292,7,TRUE) -> -83.9375 | G39: =VLOOKUP(A39,LongLat!$A$2:$H$292,8,TRUE) -> 34.73996 | H39: http://www.cnyhiking.com/WolfLaurelTop001.jpg
A40: 34.9 | B40: Baggs Creek Gap | C40: 3800’ | D40: GA | E40: Union | F40: =VLOOKUP(A40,LongLat!$A$2:$H$292,7,TRUE) -> -83.9375 | G40: =VLOOKUP(A40,LongLat!$A$2:$H$292,8,TRUE) -> 34.73996
A41: 35.4 | B41: Cowrock Mt. | C41: 3842’ | D41: GA | E41: Union | F41: =VLOOKUP(A41,LongLat!$A$2:$H$292,7,TRUE) -> -83.9375 | G41: =VLOOKUP(A41,LongLat!$A$2:$H$292,8,TRUE) -> 34.73996 | H41: http://www.cnyhiking.com/CowrockMtn001.jpg
A42: 36.2 | B42: Tesnatee Gap, GA 348 | C42: 3138’ | D42: GA | E42: Union | F42: =VLOOKUP(A42,LongLat!$A$2:$H$292,7,TRUE) -> -83.9375 | G42: =VLOOKUP(A42,LongLat!$A$2:$H$292,8,TRUE) -> 34.73996
A43: 36.7 | B43: Wildcat Mt. | C43: 3500’ | D43: GA | E43: Union | F43: =VLOOKUP(A43,LongLat!$A$2:$H$292,7,TRUE) -> -83.8344 | G43: =VLOOKUP(A43,LongLat!$A$2:$H$292,8,TRUE) -> 34.71239 | H43: http://www.cnyhiking.com/wildcatmtnsunset.JPG
A44: 36.9 | B44: Whitley Gap Shelter (pic) | C44: 3370’ | D44: GA | E44: Union | F44: =VLOOKUP(A44,LongLat!$A$2:$H$292,7,TRUE) -> -83.8344 | G44: =VLOOKUP(A44,LongLat!$A$2:$H$292,8,TRUE) -> 34.71239
A45: 37.1 | B45: Hogpen Gap, GA 348 | C45: 3450’ | D45: GA | E45: White | F45: =VLOOKUP(A45,LongLat!$A$2:$H$292,7,TRUE) -> -83.8344 | G45: =VLOOKUP(A45,LongLat!$A$2:$H$292,8,TRUE) -> 34.71239 | H45: http://notd.blogs.com/photos/tdg/hogpen_signjpg.jpg
A46: 38 | B46: White Oak Stamp | C46: 3470’ | D46: GA | E46: White | F46: =VLOOKUP(A46,LongLat!$A$2:$H$292,7,TRUE) -> -83.8344 | G46: =VLOOKUP(A46,LongLat!$A$2:$H$292,8,TRUE) -> 34.71239
A47: 39 | B47: Poor Mt. | C47: 3620’ | D47: GA | E47: White | F47: =VLOOKUP(A47,LongLat!$A$2:$H$292,7,TRUE) -> -83.8344 | G47: =VLOOKUP(A47,LongLat!$A$2:$H$292,8,TRUE) -> 34.71239
A48: 40.7 | B48: Sheep Rock Top | C48: 3600’ | D48: GA | E48: White | F48: =VLOOKUP(A48,LongLat!$A$2:$H$292,7,TRUE) -> -83.8344 | G48: =VLOOKUP(A48,LongLat!$A$2:$H$292,8,TRUE) -> 34.71239
A49: 41.5 | B49: Low Gap Shelter (pic) | C49: 3050’ | D49: GA | E49: White | F49: =VLOOKUP(A49,LongLat!$A$2:$H$292,7,TRUE) -> -83.8247 | G49: =VLOOKUP(A49,LongLat!$A$2:$H$292,8,TRUE) -> 34.77618
A50: 42.9 | B50: Poplar Stamp Gap | C50: 2990’ | D50: GA | E50: White | F50: =VLOOKUP(A50,LongLat!$A$2:$H$292,7,TRUE) -> -83.8247 | G50: =VLOOKUP(A50,LongLat!$A$2:$H$292,8,TRUE) -> 34.77618 | H50: http://www.flickr.com/photos/hikerdana/166750001/
A51: 45.3 | B51: Cold Springs Gap | C51: 3300’ | D51: GA | E51: White | F51: =VLOOKUP(A51,LongLat!$A$2:$H$292,7,TRUE) -> -83.8247 | G51: =VLOOKUP(A51,LongLat!$A$2:$H$292,8,TRUE) -> 34.77618
A52: 46.5 | B52: Chattahoochee Gap | C52: 3500’ | D52: GA | E52: White | F52: =VLOOKUP(A52,LongLat!$A$2:$H$292,7,TRUE) -> -83.8247 | G52: =VLOOKUP(A52,LongLat!$A$2:$H$292,8,TRUE) -> 34.77618
A53: 47.1 | B53: Red Clay Gap | C53: 3485’ | D53: GA | E53: White | F53: =VLOOKUP(A53,LongLat!$A$2:$H$292,7,TRUE) -> -83.8247 | G53: =VLOOKUP(A53,LongLat!$A$2:$H$292,8,TRUE) -> 34.77618
A54: 47.8 | B54: campsite | C54: 3600’ | D54: GA | E54: White | F54: =VLOOKUP(A54,LongLat!$A$2:$H$292,7,TRUE) -> -83.8247 | G54: =VLOOKUP(A54,LongLat!$A$2:$H$292,8,TRUE) -> 34.77618
A55: 48 | B55: spring | C55: 3500’ | D55: GA | E55: White | F55: =VLOOKUP(A55,LongLat!$A$2:$H$292,7,TRUE) -> -83.8247 | G55: =VLOOKUP(A55,LongLat!$A$2:$H$292,8,TRUE) -> 34.77618
A56: 48.7 | B56: Blue Mt. Shelter (pic) | C56: 3900’ | D56: GA | E56: White | F56: =VLOOKUP(A56,LongLat!$A$2:$H$292,7,TRUE) -> -83.7668 | G56: =VLOOKUP(A56,LongLat!$A$2:$H$292,8,TRUE) -> 34.81711
A57: 49.5 | B57: Blue Mt. | C57: 4025’ | D57: GA | E57: White | F57: =VLOOKUP(A57,LongLat!$A$2:$H$292,7,TRUE) -> -83.7668 | G57: =VLOOKUP(A57,LongLat!$A$2:$H$292,8,TRUE) -> 34.81711
A58: 50.9 | B58: Unicoi Gap, GA 75 | C58: 2949’ | D58: GA | E58: Unicoi | F58: =VLOOKUP(A58,LongLat!$A$2:$H$292,7,TRUE) -> -83.7668 | G58: =VLOOKUP(A58,LongLat!$A$2:$H$292,8,TRUE) -> 34.81711 | H58: http://www.flickr.com/photos/15572047@N00/20147221
A59: 51.5 | B59: stream | C59: 3300’ | D59: GA | E59: Towns | F59: =VLOOKUP(A59,LongLat!$A$2:$H$292,7,TRUE) -> -83.7668 | G59: =VLOOKUP(A59,LongLat!$A$2:$H$292,8,TRUE) -> 34.81711
A60: 52.2 | B60: Rocky Mt. | C60: 4017’ | D60: GA | E60: Towns | F60: =VLOOKUP(A60,LongLat!$A$2:$H$292,7,TRUE) -> -83.7668 | G60: =VLOOKUP(A60,LongLat!$A$2:$H$292,8,TRUE) -> 34.81711 | H60: http://urbanbaboon.blogspot.com/2007/03/at-rocky-mountain-trail.html
A61: 53.5 | B61: Indian Grave Gap, USFS 283 | C61: 3113’ | D61: GA | E61: Towns | F61: =VLOOKUP(A61,LongLat!$A$2:$H$292,7,TRUE) -> -83.7668 | G61: =VLOOKUP(A61,LongLat!$A$2:$H$292,8,TRUE) -> 34.81711 | H61: http://www.scotthearn.com/WALKABOUTBLOG/content/binary/DSCN0993.JPG
A62: 54.2 | B62: Tray Mt. Road, USFS 79 | C62: 3580’ | D62: GA | E62: Towns | F62: =VLOOKUP(A62,LongLat!$A$2:$H$292,7,TRUE) -> -83.7668 | G62: =VLOOKUP(A62,LongLat!$A$2:$H$292,8,TRUE) -> 34.81711
A63: 54.5 | B63: Cheese Factory Site | C63: 3590’ | D63: GA | E63: Towns | F63: =VLOOKUP(A63,LongLat!$A$2:$H$292,7,TRUE) -> -83.7668 | G63: =VLOOKUP(A63,LongLat!$A$2:$H$292,8,TRUE) -> 34.81711 | H63: http://www.scotthearn.com/WALKABOUTBLOG/content/binary/DSCN0996.JPG
A64: 55.3 | B64: Tray Gap, Tray Mt. Road | C64: 3847’ | D64: GA | E64: Towns | F64: =VLOOKUP(A64,LongLat!$A$2:$H$292,7,TRUE) -> -83.7668 | G64: =VLOOKUP(A64,LongLat!$A$2:$H$292,8,TRUE) -> 34.81711 | H64: http://www.flickr.com/photos/runsonsumatra/3511474485/in/set-72157617762637085/
A65: 56.1 | B65: Tray Mt. | C65: 4430’ | D65: GA | E65: Towns | F65: =VLOOKUP(A65,LongLat!$A$2:$H$292,7,TRUE) -> -83.6769 | G65: =VLOOKUP(A65,LongLat!$A$2:$H$292,8,TRUE) -> 34.80396
A66: 56.5 | B66: Tray Mt. Shelter (pic) | C66: 4200’ | D66: GA | E66: Towns | F66: =VLOOKUP(A66,LongLat!$A$2:$H$292,7,TRUE) -> -83.6769 | G66: =VLOOKUP(A66,LongLat!$A$2:$H$292,8,TRUE) -> 34.80396 | H66: http://whiteblaze.net/forum/vbg/files/4/1/ga_-_tray_mountain_shelter-med.jpg
A67: 60.1 | B67: Swag of the Blue Ridge | C67: 3400’ | D67: GA | E67: Towns | F67: =VLOOKUP(A67,LongLat!$A$2:$H$292,7,TRUE) -> -83.6769 | G67: =VLOOKUP(A67,LongLat!$A$2:$H$292,8,TRUE) -> 34.80396 | H67: http://www.flickr.com/photos/cyclopshiker/2389005657/
A68: 61.3 | B68: Sassafras Gap | C68: 3500’ | D68: GA | E68: Towns | F68: =VLOOKUP(A68,LongLat!$A$2:$H$292,7,TRUE) -> -83.6769 | G68: =VLOOKUP(A68,LongLat!$A$2:$H$292,8,TRUE) -> 34.80396
A69: 62.1 | B69: Addis Gap | C69: 3304’ | D69: GA | E69: Towns | F69: =VLOOKUP(A69,LongLat!$A$2:$H$292,7,TRUE) -> -83.6769 | G69: =VLOOKUP(A69,LongLat!$A$2:$H$292,8,TRUE) -> 34.80396
A70: 63.1 | B70: Kelly Knob | C70: 4276’ | D70: GA | E70: Towns | F70: =VLOOKUP(A70,LongLat!$A$2:$H$292,7,TRUE) -> -83.6462 | G70: =VLOOKUP(A70,LongLat!$A$2:$H$292,8,TRUE) -> 34.88235
A71: 64 | B71: Deep Gap Shelter (pic) | C71: 3550’ | D71: GA | E71: Towns | F71: =VLOOKUP(A71,LongLat!$A$2:$H$292,7,TRUE) -> -83.6462 | G71: =VLOOKUP(A71,LongLat!$A$2:$H$292,8,TRUE) -> 34.88235
A72: 65.1 | B72: McClure Gap | C72: 3650’ | D72: GA | E72: Towns | F72: =VLOOKUP(A72,LongLat!$A$2:$H$292,7,TRUE) -> -83.6462 | G72: =VLOOKUP(A72,LongLat!$A$2:$H$292,8,TRUE) -> 34.88235
A73: 65.3 | B73: Powell Mt. | C73: 3850’ | D73: GA | E73: Towns | F73: =VLOOKUP(A73,LongLat!$A$2:$H$292,7,TRUE) -> -83.6462 | G73: =VLOOKUP(A73,LongLat!$A$2:$H$292,8,TRUE) -> 34.88235 | H73: http://www.runtrails.net/journal/images/1_ga/smooth.jpg
A74: 66.3 | B74: Moreland Gap | C74: 3200’ | D74: GA | E74: Towns | F74: =VLOOKUP(A74,LongLat!$A$2:$H$292,7,TRUE) -> -83.6462 | G74: =VLOOKUP(A74,LongLat!$A$2:$H$292,8,TRUE) -> 34.88235
A75: 66.9 | B75: stream | C75: 2650’ | D75: GA | E75: Towns | F75: =VLOOKUP(A75,LongLat!$A$2:$H$292,7,TRUE) -> -83.6462 | G75: =VLOOKUP(A75,LongLat!$A$2:$H$292,8,TRUE) -> 34.88235
A76: 67.5 | B76: Dicks Creek Gap | C76: 2675’ | D76: GA | E76: Rabun | F76: =VLOOKUP(A76,LongLat!$A$2:$H$292,7,TRUE) -> -83.6462 | G76: =VLOOKUP(A76,LongLat!$A$2:$H$292,8,TRUE) -> 34.88235
A77: 68.6 | B77: campsite | C77: 3150’ | D77: GA | E77: Rabun | F77: =VLOOKUP(A77,LongLat!$A$2:$H$292,7,TRUE) -> -83.6462 | G77: =VLOOKUP(A77,LongLat!$A$2:$H$292,8,TRUE) -> 34.88235
A78: 69.3 | B78: Cowart Gap | C78: 2900’ | D78: GA | E78: Rabun | F78: =VLOOKUP(A78,LongLat!$A$2:$H$292,7,TRUE) -> -83.6462 | G78: =VLOOKUP(A78,LongLat!$A$2:$H$292,8,TRUE) -> 34.88235
A79: 70.8 | B79: Bull Gap | C79: 3690’ | D79: GA | E79: Rabun | F79: =VLOOKUP(A79,LongLat!$A$2:$H$292,7,TRUE) -> -83.6462 | G79: =VLOOKUP(A79,LongLat!$A$2:$H$292,8,TRUE) -> 34.88235
A80: 72 | B80: Plumorchard Gap Shelter (pic) | C80: 3050’ | D80: GA | E80: Rabun | F80: =VLOOKUP(A80,LongLat!$A$2:$H$292,7,TRUE) -> -83.5883 | G80: =VLOOKUP(A80,LongLat!$A$2:$H$292,8,TRUE) -> 34.94604 | H80: http://joeliles.chunkyboy.com/wp-content/uploads/2009/03/pics_0320/plumorchard_shelter.jpg
A81: 72.7 | B81: As Knob | C81: 3460’ | D81: GA | E81: Rabun | F81: =VLOOKUP(A81,LongLat!$A$2:$H$292,7,TRUE) -> -83.5883 | G81: =VLOOKUP(A81,LongLat!$A$2:$H$292,8,TRUE) -> 34.94604
A82: 73.3 | B82: Blue Ridge Gap | C82: 3020’ | D82: GA | E82: Rabun | F82: =VLOOKUP(A82,LongLat!$A$2:$H$292,7,TRUE) -> -83.5883 | G82: =VLOOKUP(A82,LongLat!$A$2:$H$292,8,TRUE) -> 34.94604
A83: 74.3 | B83: campsite | C83: 3500’ | D83: GA | E83: Rabun | F83: =VLOOKUP(A83,LongLat!$A$2:$H$292,7,TRUE) -> -83.5883 | G83: =VLOOKUP(A83,LongLat!$A$2:$H$292,8,TRUE) -> 34.94604
A84: 74.5 | B84: Rich Cove Gap | C84: 3390’ | D84: GA | E84: Rabun | F84: =VLOOKUP(A84,LongLat!$A$2:$H$292,7,TRUE) -> -83.5883 | G84: =VLOOKUP(A84,LongLat!$A$2:$H$292,8,TRUE) -> 34.94604
A85: 76.4 | B85: GA-NC State Line | C85: 3825’ | F85: =VLOOKUP(A85,LongLat!$A$2:$H$292,7,TRUE) -> -83.5883 | G85: =VLOOKUP(A85,LongLat!$A$2:$H$292,8,TRUE) -> 34.94604
A86: 76.5 | B86: Bly Gap | C86: 3840’ | D86: NC / TN | E86: Clay | F86: =VLOOKUP(A86,LongLat!$A$2:$H$292,7,TRUE) -> -83.5883 | G86: =VLOOKUP(A86,LongLat!$A$2:$H$292,8,TRUE) -> 34.94604 | H86: http://www.hiketheappalachian.com/media/blogPhotos/ncline.JPG
A87: 76.8 | B87: Sharp Top | C87: 4340’ | D87: NC / TN | E87: Clay | F87: =VLOOKUP(A87,LongLat!$A$2:$H$292,7,TRUE) -> -83.5883 | G87: =VLOOKUP(A87,LongLat!$A$2:$H$292,8,TRUE) -> 34.94604 | H87: http://www.summitpost.org/sharp-top/758161
A88: 78.4 | B88: Sassafras Gap | C88: 4300’ | D88: NC / TN | E88: Clay | F88: =VLOOKUP(A88,LongLat!$A$2:$H$292,7,TRUE) -> -83.5816 | G88: =VLOOKUP(A88,LongLat!$A$2:$H$292,8,TRUE) -> 35.02054
A89: 79.3 | B89: Muskrat Creek Shelter (pic) | C89: 4600’ | D89: NC / TN | E89: Clay | F89: =VLOOKUP(A89,LongLat!$A$2:$H$292,7,TRUE) -> -83.5816 | G89: =VLOOKUP(A89,LongLat!$A$2:$H$292,8,TRUE) -> 35.02054
A90: 80.1 | B90: Whiteoak Stamp | C90: 4620’ | D90: NC / TN | E90: Clay | F90: =VLOOKUP(A90,LongLat!$A$2:$H$292,7,TRUE) -> -83.5816 | G90: =VLOOKUP(A90,LongLat!$A$2:$H$292,8,TRUE) -> 35.02054
A91: 80.3 | B91: Chunky Gal Trail | C91: 4700’ | D91: NC / TN | E91: Clay | F91: =VLOOKUP(A91,LongLat!$A$2:$H$292,7,TRUE) -> -83.5816 | G91: =VLOOKUP(A91,LongLat!$A$2:$H$292,8,TRUE) -> 35.02054
A92: 81.2 | B92: Wateroak Gap | C92: 4490’ | D92: NC / TN | E92: Clay | F92: =VLOOKUP(A92,LongLat!$A$2:$H$292,7,TRUE) -> -83.5816 | G92: =VLOOKUP(A92,LongLat!$A$2:$H$292,8,TRUE) -> 35.02054 | H92: http://www.flickr.com/photos/uallas/2545529107/
A93: 83.3 | B93: Deep Gap, USFS 71, Kimsey Creek Trail | C93: 4341’ | D93: NC / TN | E93: Clay | F93: =VLOOKUP(A93,LongLat!$A$2:$H$292,7,TRUE) -> -83.5482 | G93: =VLOOKUP(A93,LongLat!$A$2:$H$292,8,TRUE) -> 35.04183
A94: 84.2 | B94: Standing Indian Shelter (pic) | C94: 4760’ | D94: NC / TN | E94: Clay | F94: =VLOOKUP(A94,LongLat!$A$2:$H$292,7,TRUE) -> -83.5482 | G94: =VLOOKUP(A94,LongLat!$A$2:$H$292,8,TRUE) -> 35.04183 | H94: http://www.panoramio.com/photo/24688774
A95: 85.7 | B95: Standing Indian Mt. | C95: 5498’ | D95: NC / TN | E95: Clay | F95: =VLOOKUP(A95,LongLat!$A$2:$H$292,7,TRUE) -> -83.5482 | G95: =VLOOKUP(A95,LongLat!$A$2:$H$292,8,TRUE) -> 35.04183 | H95: http://www.summitpost.org/mountain/rock/151640/standing-indian-mountain.html
A96: 88.6 | B96: Beech Gap | C96: 4460’ | D96: NC / TN | E96: Clay | F96: =VLOOKUP(A96,LongLat!$A$2:$H$292,7,TRUE) -> -83.5482 | G96: =VLOOKUP(A96,LongLat!$A$2:$H$292,8,TRUE) -> 35.04183
A97: 91.4 | B97: Timber Ridge Trail | C97: 4700’ | D97: NC / TN | E97: Clay | F97: =VLOOKUP(A97,LongLat!$A$2:$H$292,7,TRUE) -> -83.4943 | G97: =VLOOKUP(A97,LongLat!$A$2:$H$292,8,TRUE) -> 34.9989
A98: 91.8 | B98: Carter Gap Shelter (pic) | C98: 4540’ | D98: NC / TN | E98: Clay | F98: =VLOOKUP(A98,LongLat!$A$2:$H$292,7,TRUE) -> -83.4943 | G98: =VLOOKUP(A98,LongLat!$A$2:$H$292,8,TRUE) -> 34.9989
A99: 95.5 | B99: Betty Creek Gap | C99: 4300’ | D99: NC / TN | E99: Clay | F99: =VLOOKUP(A99,LongLat!$A$2:$H$292,7,TRUE) -> -83.4943 | G99: =VLOOKUP(A99,LongLat!$A$2:$H$292,8,TRUE) -> 34.9989
A100: 96.4 | B100: Mooney Gap, USFS 83 | C100: 4400’ | D100: NC / TN | E100: Haywood | F100: =VLOOKUP(A100,LongLat!$A$2:$H$292,7,TRUE) -> -83.4943 | G100: =VLOOKUP(A100,LongLat!$A$2:$H$292,8,TRUE) -> 34.9989
A101: 96.6 | B101: spring | C101: 4500’ | D101: NC / TN | E101: Haywood | F101: =VLOOKUP(A101,LongLat!$A$2:$H$292,7,TRUE) -> -83.4943 | G101: =VLOOKUP(A101,LongLat!$A$2:$H$292,8,TRUE) -> 34.9989
A102: 97.7 | B102: Bearpen Trail, USFS 67 | C102: 4790’ | D102: NC / TN | E102: Haywood | F102: =VLOOKUP(A102,LongLat!$A$2:$H$292,7,TRUE) -> -83.4789 | G102: =VLOOKUP(A102,LongLat!$A$2:$H$292,8,TRUE) -> 35.05891
A103: 98 | B103: Albert Mt. | C103: 5250’ | D103: NC / TN | E103: Haywood | F103: =VLOOKUP(A103,LongLat!$A$2:$H$292,7,TRUE) -> -83.4789 | G103: =VLOOKUP(A103,LongLat!$A$2:$H$292,8,TRUE) -> 35.05891 | H103: http://www.summitpost.org/mountain/rock/154267/albert-mountain.html
A104: 98.6 | B104: Big Spring Shelter (pic) | C104: 4940’ | D104: NC / TN | E104: Haywood | F104: =VLOOKUP(A104,LongLat!$A$2:$H$292,7,TRUE) -> -83.4789 | G104: =VLOOKUP(A104,LongLat!$A$2:$H$292,8,TRUE) -> 35.05891
A105: 101.4 | B105: Glassmine Gap | C105: 4160’ | D105: NC / TN | E105: Macon | F105: =VLOOKUP(A105,LongLat!$A$2:$H$292,7,TRUE) -> -83.4789 | G105: =VLOOKUP(A105,LongLat!$A$2:$H$292,8,TRUE) -> 35.05891
A106: 103.9 | B106: Rock Gap Shelter (pic) | C106: 3760’ | D106: NC / TN | E106: Macon | F106: =VLOOKUP(A106,LongLat!$A$2:$H$292,7,TRUE) -> -83.5231 | G106: =VLOOKUP(A106,LongLat!$A$2:$H$292,8,TRUE) -> 35.09144
A107: 104 | B107: Rock Gap, Standing Indian Campground | C107: 3750’ | D107: NC / TN | E107: Macon | F107: =VLOOKUP(A107,LongLat!$A$2:$H$292,7,TRUE) -> -83.5231 | G107: =VLOOKUP(A107,LongLat!$A$2:$H$292,8,TRUE) -> 35.09144
A108: 104.6 | B108: Wallace Gap, Old US 64 | C108: 3738’ | D108: NC / TN | E108: Macon | F108: =VLOOKUP(A108,LongLat!$A$2:$H$292,7,TRUE) -> -83.5231 | G108: =VLOOKUP(A108,LongLat!$A$2:$H$292,8,TRUE) -> 35.09144
A109: 107.7 | B109: Winding Stair Gap, US 64 | C109: 3770’ | D109: NC / TN | E109: Macon | F109: =VLOOKUP(A109,LongLat!$A$2:$H$292,7,TRUE) -> -83.5231 | G109: =VLOOKUP(A109,LongLat!$A$2:$H$292,8,TRUE) -> 35.09144
A110: 108.6 | B110: campsite | C110: 3970’ | D110: NC / TN | E110: Macon | F110: =VLOOKUP(A110,LongLat!$A$2:$H$292,7,TRUE) -> -83.5231 | G110: =VLOOKUP(A110,LongLat!$A$2:$H$292,8,TRUE) -> 35.09144
A111: 108.8 | B111: Swinging Lick Gap | C111: 4100’ | D111: NC / TN | E111: Macon | F111: =VLOOKUP(A111,LongLat!$A$2:$H$292,7,TRUE) -> -83.5231 | G111: =VLOOKUP(A111,LongLat!$A$2:$H$292,8,TRUE) -> 35.09144 | H111: http://www.flickr.com/photos/39926480@N04/3851089740
A112: 109.7 | B112: Panther Gap | C112: 4480’ | D112: NC / TN | E112: Macon | F112: =VLOOKUP(A112,LongLat!$A$2:$H$292,7,TRUE) -> -83.5231 | G112: =VLOOKUP(A112,LongLat!$A$2:$H$292,8,TRUE) -> 35.09144 | H112: http://www.flickr.com/photos/crumleydotorg/2606813909/
A113: 111.4 | B113: Siler Bald Shelter (pic) | C113: 4600’ | D113: NC / TN | E113: Macon | F113: =VLOOKUP(A113,LongLat!$A$2:$H$292,7,TRUE) -> -83.5725 | G113: =VLOOKUP(A113,LongLat!$A$2:$H$292,8,TRUE) -> 35.14414
A114: 113.6 | B114: Wayah Gap, SR 1310 | C114: 4180’ | D114: NC / TN | E114: Macon | F114: =VLOOKUP(A114,LongLat!$A$2:$H$292,7,TRUE) -> -83.5725 | G114: =VLOOKUP(A114,LongLat!$A$2:$H$292,8,TRUE) -> 35.14414
A115: 115.4 | B115: USFS 69 | C115: 4900’ | D115: NC / TN | E115: Macon | F115: =VLOOKUP(A115,LongLat!$A$2:$H$292,7,TRUE) -> -83.5725 | G115: =VLOOKUP(A115,LongLat!$A$2:$H$292,8,TRUE) -> 35.14414
A116: 115.9 | B116: Wine Spring Bald side trail | C116: 5290’ | D116: NC / TN | E116: Macon | F116: =VLOOKUP(A116,LongLat!$A$2:$H$292,7,TRUE) -> -83.5725 | G116: =VLOOKUP(A116,LongLat!$A$2:$H$292,8,TRUE) -> 35.14414 | H116: http://www.summitpost.org/mountain/rock/516313/wine-spring-bald.html
A117: 117.8 | B117: Wayah Bald | C117: 5342’ | D117: NC / TN | E117: Macon | F117: =VLOOKUP(A117,LongLat!$A$2:$H$292,7,TRUE) -> -83.5725 | G117: =VLOOKUP(A117,LongLat!$A$2:$H$292,8,TRUE) -> 35.14414 | H117: http://www.summitpost.org/mountain/rock/516018/wayah-bald.html
A118: 118.2 | B118: campsite | C118: 5200’ | D118: NC / TN | E118: Macon | F118: =VLOOKUP(A118,LongLat!$A$2:$H$292,7,TRUE) -> -83.5725 | G118: =VLOOKUP(A118,LongLat!$A$2:$H$292,8,TRUE) -> 35.14414
A119: 118.7 | B119: Wayah Shelter (pic) | C119: 4759’ | D119: NC / TN | E119: Macon | F119: =VLOOKUP(A119,LongLat!$A$2:$H$292,7,TRUE) -> -83.5725 | G119: =VLOOKUP(A119,LongLat!$A$2:$H$292,8,TRUE) -> 35.14414 | H119: http://www.flickr.com/photos/ubtcmdr/3854343688/
A120: 120 | B120: Licklog Gap | C120: 4440’ | D120: NC / TN | E120: Macon | F120: =VLOOKUP(A120,LongLat!$A$2:$H$292,7,TRUE) -> -83.5725 | G120: =VLOOKUP(A120,LongLat!$A$2:$H$292,8,TRUE) -> 35.14414
A121: 122.3 | B121: Burningtown Gap, SR 1397 | C121: 4236’ | D121: NC / TN | E121: Macon | F121: =VLOOKUP(A121,LongLat!$A$2:$H$292,7,TRUE) -> -83.5725 | G121: =VLOOKUP(A121,LongLat!$A$2:$H$292,8,TRUE) -> 35.14414 | H121: http://www.flickr.com/photos/jritch/2760285476/
A122: 123.5 | B122: Cold Spring Shelter (pic) | C122: 4920’ | D122: NC / TN | E122: Macon | F122: =VLOOKUP(A122,LongLat!$A$2:$H$292,7,TRUE) -> -83.5599 | G122: =VLOOKUP(A122,LongLat!$A$2:$H$292,8,TRUE) -> 35.2309 | H122: http://www.panoramio.com/photo/21750053
A123: 124.2 | B123: Copper Ridge Bald Lookout | C123: 5080’ | D123: NC / TN | E123: Macon | F123: =VLOOKUP(A123,LongLat!$A$2:$H$292,7,TRUE) -> -83.5599 | G123: =VLOOKUP(A123,LongLat!$A$2:$H$292,8,TRUE) -> 35.2309 | H123: http://www.pbase.com/bstelloh/image/2936250
A124: 125.4 | B124: Rocky Bald Lookout side trail | C124: 5030’ | D124: NC / TN | E124: Macon | F124: =VLOOKUP(A124,LongLat!$A$2:$H$292,7,TRUE) -> -83.5599 | G124: =VLOOKUP(A124,LongLat!$A$2:$H$292,8,TRUE) -> 35.2309
A125: 125.7 | B125: spring | C125: 4900’ | D125: NC / TN | E125: Macon | F125: =VLOOKUP(A125,LongLat!$A$2:$H$292,7,TRUE) -> -83.5599 | G125: =VLOOKUP(A125,LongLat!$A$2:$H$292,8,TRUE) -> 35.2309
A126: 127.1 | B126: Tellico Gap, SR 1365 | C126: 3850’ | D126: NC / TN | E126: Macon | F126: =VLOOKUP(A126,LongLat!$A$2:$H$292,7,TRUE) -> -83.5599 | G126: =VLOOKUP(A126,LongLat!$A$2:$H$292,8,TRUE) -> 35.2309 | H126: http://www.flickr.com/photos/gghiker/3089625821/
A127: 128.5 | B127: Wesser Bald Tower | C127: 4627’ | D127: NC / TN | E127: Macon | F127: =VLOOKUP(A127,LongLat!$A$2:$H$292,7,TRUE) -> -83.5822 | G127: =VLOOKUP(A127,LongLat!$A$2:$H$292,8,TRUE) -> 35.28235 | H127: http://www.panoramio.com/photo/8677343
A128: 129.2 | B128: spring | C128: 4100’ | D128: NC / TN | E128: Macon | F128: =VLOOKUP(A128,LongLat!$A$2:$H$292,7,TRUE) -> -83.5822 | G128: =VLOOKUP(A128,LongLat!$A$2:$H$292,8,TRUE) -> 35.28235
A129: 129.3 | B129: Wesser Bald Shelter (pic) | C129: 4115’ | D129: NC / TN | E129: Macon | F129: =VLOOKUP(A129,LongLat!$A$2:$H$292,7,TRUE) -> -83.5822 | G129: =VLOOKUP(A129,LongLat!$A$2:$H$292,8,TRUE) -> 35.28235
A130: 130.9 | B130: Jump-up Lookout | C130: 4000’ | D130: NC / TN | E130: Macon | F130: =VLOOKUP(A130,LongLat!$A$2:$H$292,7,TRUE) -> -83.5822 | G130: =VLOOKUP(A130,LongLat!$A$2:$H$292,8,TRUE) -> 35.28235
A131: 134.2 | B131: A. Rufus Morgan Shelter (pic) | C131: 2300’ | D131: NC / TN | E131: Macon | F131: =VLOOKUP(A131,LongLat!$A$2:$H$292,7,TRUE) -> -83.5902 | G131: =VLOOKUP(A131,LongLat!$A$2:$H$292,8,TRUE) -> 35.32418
A132: 135 | B132: Nantahala Outdoor Center | C132: 1723’ | D132: NC / TN | E132: Macon | F132: =VLOOKUP(A132,LongLat!$A$2:$H$292,7,TRUE) -> -83.5902 | G132: =VLOOKUP(A132,LongLat!$A$2:$H$292,8,TRUE) -> 35.32418 | H132: http://www.noc.com/
A133: 136.6 | B133: Wright Gap | C133: 2390’ | D133: NC / TN | E133: Macon | F133: =VLOOKUP(A133,LongLat!$A$2:$H$292,7,TRUE) -> -83.5902 | G133: =VLOOKUP(A133,LongLat!$A$2:$H$292,8,TRUE) -> 35.32418
A134: 138.1 | B134: Grassy Gap | C134: 3050’ | D134: NC / TN | E134: Transylvania | F134: =VLOOKUP(A134,LongLat!$A$2:$H$292,7,TRUE) -> -83.5902 | G134: =VLOOKUP(A134,LongLat!$A$2:$H$292,8,TRUE) -> 35.32418
A135: 141 | B135: Swim Bald | C135: 4710’ | D135: NC / TN | E135: Transylvania | F135: =VLOOKUP(A135,LongLat!$A$2:$H$292,7,TRUE) -> -83.667 | G135: =VLOOKUP(A135,LongLat!$A$2:$H$292,8,TRUE) -> 35.33068
A136: 141.9 | B136: Sassafras Gap Shelter (pic) | C136: 4330’ | D136: NC / TN | E136: Transylvania | F136: =VLOOKUP(A136,LongLat!$A$2:$H$292,7,TRUE) -> -83.667 | G136: =VLOOKUP(A136,LongLat!$A$2:$H$292,8,TRUE) -> 35.33068
A137: 143.1 | B137: Cheoah Bald | C137: 5062’ | D137: NC / TN | E137: Transylvania | F137: =VLOOKUP(A137,LongLat!$A$2:$H$292,7,TRUE) -> -83.667 | G137: =VLOOKUP(A137,LongLat!$A$2:$H$292,8,TRUE) -> 35.33068 | H137: http://www.summitpost.org/mountain/rock/155095/cheoah-bald.html
A138: 145.5 | B138: Locust Grove Gap | C138: 3690’ | D138: NC / TN | E138: Transylvania | F138: =VLOOKUP(A138,LongLat!$A$2:$H$292,7,TRUE) -> -83.667 | G138: =VLOOKUP(A138,LongLat!$A$2:$H$292,8,TRUE) -> 35.33068
A139: 146.5 | B139: Simp Gap | C139: 3700’ | D139: NC / TN | E139: Transylvania | F139: =VLOOKUP(A139,LongLat!$A$2:$H$292,7,TRUE) -> -83.667 | G139: =VLOOKUP(A139,LongLat!$A$2:$H$292,8,TRUE) -> 35.33068
A140: 148.6 | B140: Stecoah Gap, NC 143 | C140: 3165’ | D140: NC / TN | E140: Transylvania | F140: =VLOOKUP(A140,LongLat!$A$2:$H$292,7,TRUE) -> -83.667 | G140: =VLOOKUP(A140,LongLat!$A$2:$H$292,8,TRUE) -> 35.33068
A141: 149.6 | B141: Sweetwater Gap | C141: 3270’ | D141: NC / TN | E141: Clay | F141: =VLOOKUP(A141,LongLat!$A$2:$H$292,7,TRUE) -> -83.667 | G141: =VLOOKUP(A141,LongLat!$A$2:$H$292,8,TRUE) -> 35.33068
A142: 151 | B142: Brown Fork Gap Shelter (pic) | C142: 3800’ | D142: NC / TN | E142: Clay | F142: =VLOOKUP(A142,LongLat!$A$2:$H$292,7,TRUE) -> -83.7339 | G142: =VLOOKUP(A142,LongLat!$A$2:$H$292,8,TRUE) -> 35.37424
A143: 151.2 | B143: Brown Fork Gap | C143: 3600’ | D143: NC / TN | E143: Clay | F143: =VLOOKUP(A143,LongLat!$A$2:$H$292,7,TRUE) -> -83.7339 | G143: =VLOOKUP(A143,LongLat!$A$2:$H$292,8,TRUE) -> 35.37424
A144: 153 | B144: Hogback Gap | C144: 3540’ | D144: NC / TN | E144: Clay | F144: =VLOOKUP(A144,LongLat!$A$2:$H$292,7,TRUE) -> -83.7339 | G144: =VLOOKUP(A144,LongLat!$A$2:$H$292,8,TRUE) -> 35.37424
A145: 153.8 | B145: Cody Gap | C145: 3600’ | D145: NC / TN | E145: Graham | F145: =VLOOKUP(A145,LongLat!$A$2:$H$292,7,TRUE) -> -83.7339 | G145: =VLOOKUP(A145,LongLat!$A$2:$H$292,8,TRUE) -> 35.37424 | H145: http://cache.backpackinglight.com/backpackinglight/user_uploads/1261695060_19038.jpg
A146: 156.2 | B146: Yellow Creek Gap, SR 1242 | C146: 2980’ | D146: NC / TN | E146: Graham | F146: =VLOOKUP(A146,LongLat!$A$2:$H$292,7,TRUE) -> -83.7736 | G146: =VLOOKUP(A146,LongLat!$A$2:$H$292,8,TRUE) -> 35.41522
A147: 157.1 | B147: Cable Gap Shelter (pic) | C147: 2880’ | D147: NC / TN | E147: Graham | F147: =VLOOKUP(A147,LongLat!$A$2:$H$292,7,TRUE) -> -83.7736 | G147: =VLOOKUP(A147,LongLat!$A$2:$H$292,8,TRUE) -> 35.41522
A148: 158.5 | B148: Black Gum Gap | C148: 3490’ | D148: NC / TN | E148: Graham | F148: =VLOOKUP(A148,LongLat!$A$2:$H$292,7,TRUE) -> -83.7736 | G148: =VLOOKUP(A148,LongLat!$A$2:$H$292,8,TRUE) -> 35.41522
A149: 159.9 | B149: Walker Gap | C149: 3450’ | D149: NC / TN | E149: Graham | F149: =VLOOKUP(A149,LongLat!$A$2:$H$292,7,TRUE) -> -83.7736 | G149: =VLOOKUP(A149,LongLat!$A$2:$H$292,8,TRUE) -> 35.41522
A150: 160.1 | B150: campsite | C150: 3200’ | D150: NC / TN | E150: Graham | F150: =VLOOKUP(A150,LongLat!$A$2:$H$292,7,TRUE) -> -83.7736 | G150: =VLOOKUP(A150,LongLat!$A$2:$H$292,8,TRUE) -> 35.41522
A151: 162.6 | B151: NC 28, Fontana Dam | C151: 1810’ | D151: NC / TN | E151: Graham | F151: =VLOOKUP(A151,LongLat!$A$2:$H$292,7,TRUE) -> -83.7941 | G151: =VLOOKUP(A151,LongLat!$A$2:$H$292,8,TRUE) -> 35.44833
A152: 163.7 | B152: Fontana Dam Shelter (pic) | C152: 1775’ | D152: NC / TN | E152: Graham | F152: =VLOOKUP(A152,LongLat!$A$2:$H$292,7,TRUE) -> -83.7941 | G152: =VLOOKUP(A152,LongLat!$A$2:$H$292,8,TRUE) -> 35.44833
A153: 164 | B153: Fontana Dam Visitors Center | C153: 1700’ | D153: NC / TN | E153: Graham | F153: =VLOOKUP(A153,LongLat!$A$2:$H$292,7,TRUE) -> -83.7941 | G153: =VLOOKUP(A153,LongLat!$A$2:$H$292,8,TRUE) -> 35.44833 | H153: http://www.tva.gov/sites/fontana.htm
A154: 164.4 | B154: Fontana Dam, GSMNP west boundary | C154: 1740’ | D154: NC / TN | E154: Graham | F154: =VLOOKUP(A154,LongLat!$A$2:$H$292,7,TRUE) -> -83.7941 | G154: =VLOOKUP(A154,LongLat!$A$2:$H$292,8,TRUE) -> 35.44833 | H154: http://www.panoramio.com/photo/9411164
A155: 168.4 | B155: Shuckstack | C155: 3800’ | D155: NC / TN | E155: Graham | F155: =VLOOKUP(A155,LongLat!$A$2:$H$292,7,TRUE) -> -83.7941 | G155: =VLOOKUP(A155,LongLat!$A$2:$H$292,8,TRUE) -> 35.44833
A156: 169.6 | B156: Birch Spring Gap | C156: 3680’ | D156: NC / TN | E156: Swain | F156: =VLOOKUP(A156,LongLat!$A$2:$H$292,7,TRUE) -> -83.7941 | G156: =VLOOKUP(A156,LongLat!$A$2:$H$292,8,TRUE) -> 35.44833 | H156: http://i251.photobucket.com/albums/gg313/carlgoodman/IceontentatBirchSpringGap.jpg
A157: 171.9 | B157: Doe Knob | C157: 4520’ | D157: NC / TN | E157: Swain | F157: =VLOOKUP(A157,LongLat!$A$2:$H$292,7,TRUE) -> -83.7941 | G157: =VLOOKUP(A157,LongLat!$A$2:$H$292,8,TRUE) -> 35.44833
A158: 173.3 | B158: Ekaneetlee Gap | C158: 3842’ | D158: NC / TN | E158: Swain | F158: =VLOOKUP(A158,LongLat!$A$2:$H$292,7,TRUE) -> -83.7941 | G158: =VLOOKUP(A158,LongLat!$A$2:$H$292,8,TRUE) -> 35.44833
A159: 175 | B159: Mollies Ridge Shelter (pic) | C159: 4570’ | D159: NC / TN | E159: Swain | F159: =VLOOKUP(A159,LongLat!$A$2:$H$292,7,TRUE) -> -83.7936 | G159: =VLOOKUP(A159,LongLat!$A$2:$H$292,8,TRUE) -> 35.54578 | H159: http://commons.wikimedia.org/wiki/File:Mollies-ridge-shelter-gsmnp1.jpg
A160: 175.1 | B160: Devils Tater Patch | C160: 4775’ | D160: NC / TN | E160: Swain | F160: =VLOOKUP(A160,LongLat!$A$2:$H$292,7,TRUE) -> -83.7936 | G160: =VLOOKUP(A160,LongLat!$A$2:$H$292,8,TRUE) -> 35.54578
A161: 176.7 | B161: Little Abrams Gap | C161: 4120’ | D161: NC / TN | E161: Swain | F161: =VLOOKUP(A161,LongLat!$A$2:$H$292,7,TRUE) -> -83.7666 | G161: =VLOOKUP(A161,LongLat!$A$2:$H$292,8,TRUE) -> 35.56174
A162: 177.5 | B162: Russell Field Shelter (pic) | C162: 4360’ | D162: NC / TN | E162: Swain | F162: =VLOOKUP(A162,LongLat!$A$2:$H$292,7,TRUE) -> -83.7666 | G162: =VLOOKUP(A162,LongLat!$A$2:$H$292,8,TRUE) -> 35.56174 | H162: http://www.panoramio.com/photo/2826804
A163: 180.4 | B163: Spence Field Shelter (pic) | C163: 4915’ | D163: NC / TN | E163: Swain | F163: =VLOOKUP(A163,LongLat!$A$2:$H$292,7,TRUE) -> -83.7327 | G163: =VLOOKUP(A163,LongLat!$A$2:$H$292,8,TRUE) -> 35.5618 | H163: http://farm2.static.flickr.com/1418/891994108_1746f2edb6.jpg?v=0
A164: 181.6 | B164: Rocky Top | C164: 5440’ | D164: NC / TN | E164: Swain | F164: =VLOOKUP(A164,LongLat!$A$2:$H$292,7,TRUE) -> -83.7327 | G164: =VLOOKUP(A164,LongLat!$A$2:$H$292,8,TRUE) -> 35.5618
A165: 182.2 | B165: Thunderhead Mt. | C165: 5527’ | D165: NC / TN | E165: Swain | F165: =VLOOKUP(A165,LongLat!$A$2:$H$292,7,TRUE) -> -83.7327 | G165: =VLOOKUP(A165,LongLat!$A$2:$H$292,8,TRUE) -> 35.5618
A166: 182.5 | B166: Beechnut Gap | C166: 4920’ | D166: NC / TN | E166: Swain | F166: =VLOOKUP(A166,LongLat!$A$2:$H$292,7,TRUE) -> -83.7327 | G166: =VLOOKUP(A166,LongLat!$A$2:$H$292,8,TRUE) -> 35.5618
A167: 183.2 | B167: Mineral Gap | C167: 5030’ | D167: NC / TN | E167: Swain | F167: =VLOOKUP(A167,LongLat!$A$2:$H$292,7,TRUE) -> -83.7327 | G167: =VLOOKUP(A167,LongLat!$A$2:$H$292,8,TRUE) -> 35.5618
A168: 185.6 | B168: Sugar Tree Gap | C168: 4435’ | D168: NC / TN | E168: Swain | F168: =VLOOKUP(A168,LongLat!$A$2:$H$292,7,TRUE) -> -83.6419 | G168: =VLOOKUP(A168,LongLat!$A$2:$H$292,8,TRUE) -> 35.56625
A169: 186.7 | B169: Derrick Knob Shelter (pic) | C169: 4880’ | D169: NC / TN | E169: Swain | F169: =VLOOKUP(A169,LongLat!$A$2:$H$292,7,TRUE) -> -83.6419 | G169: =VLOOKUP(A169,LongLat!$A$2:$H$292,8,TRUE) -> 35.56625 | H169: http://en.wikipedia.org/wiki/File:Derrick-knob-shelter-tnnc1.jpg
A170: 186.9 | B170: Sams Gap | C170: 4995’ | D170: NC / TN | E170: Swain | F170: =VLOOKUP(A170,LongLat!$A$2:$H$292,7,TRUE) -> -83.6419 | G170: =VLOOKUP(A170,LongLat!$A$2:$H$292,8,TRUE) -> 35.56625
A171: 189.5 | B171: Buckeye Gap | C171: 4817’ | D171: NC / TN | E171: Swain | F171: =VLOOKUP(A171,LongLat!$A$2:$H$292,7,TRUE) -> -83.6419 | G171: =VLOOKUP(A171,LongLat!$A$2:$H$292,8,TRUE) -> 35.56625
A172: 192.2 | B172: Silers Bald Shelter (pic) | C172: 5460’ | D172: NC / TN | E172: Swain | F172: =VLOOKUP(A172,LongLat!$A$2:$H$292,7,TRUE) -> -83.5683 | G172: =VLOOKUP(A172,LongLat!$A$2:$H$292,8,TRUE) -> 35.5642
A173: 192.4 | B173: Silers Bald | C173: 5607’ | D173: NC / TN | E173: Swain | F173: =VLOOKUP(A173,LongLat!$A$2:$H$292,7,TRUE) -> -83.5683 | G173: =VLOOKUP(A173,LongLat!$A$2:$H$292,8,TRUE) -> 35.5642 | H173: http://www.summitpost.org/mountain/rock/346261/silers-bald.html
A174: 193.9 | B174: Double Spring Gap Shelter (pic) | C174: 5505’ | D174: NC / TN | E174: Swain | F174: =VLOOKUP(A174,LongLat!$A$2:$H$292,7,TRUE) -> -83.5429 | G174: =VLOOKUP(A174,LongLat!$A$2:$H$292,8,TRUE) -> 35.56517 | H174: http://whiteblaze.net/forum/vbg/files/1/2/6/9/8/IMG_0183.JPG
A175: 196.4 | B175: Clingmans Dome | C175: 6643’ | D175: NC / TN | E175: Swain | F175: =VLOOKUP(A175,LongLat!$A$2:$H$292,7,TRUE) -> -83.5429 | G175: =VLOOKUP(A175,LongLat!$A$2:$H$292,8,TRUE) -> 35.56517 | H175: http://www.summitpost.org/mountain/rock/150543/clingmans-dome.html
A176: 198 | B176: Mt. Love | C176: 6446’ | D176: NC / TN | E176: Swain | F176: =VLOOKUP(A176,LongLat!$A$2:$H$292,7,TRUE) -> -83.5429 | G176: =VLOOKUP(A176,LongLat!$A$2:$H$292,8,TRUE) -> 35.56517 | H176: http://www.summitpost.org/mountain/rock/516159/mount-love.html
A177: 200.2 | B177: Mt. Collins & Shelter (pic) | C177: 5870’ | D177: NC / TN | E177: Swain | F177: =VLOOKUP(A177,LongLat!$A$2:$H$292,7,TRUE) -> -83.4338 | G177: =VLOOKUP(A177,LongLat!$A$2:$H$292,8,TRUE) -> 35.65271 | H177: http://www.summitpost.org/view_object.php?object_id=118029&context_id=383841
A178: 203 | B178: Indian Gap | C178: 5286’ | D178: NC / TN | E178: Swain | F178: =VLOOKUP(A178,LongLat!$A$2:$H$292,7,TRUE) -> -83.4338 | G178: =VLOOKUP(A178,LongLat!$A$2:$H$292,8,TRUE) -> 35.65271
A179: 204.7 | B179: Newfound Gap, US 441 | C179: 5045’ | D179: NC / TN | E179: Swain | F179: =VLOOKUP(A179,LongLat!$A$2:$H$292,7,TRUE) -> -83.4338 | G179: =VLOOKUP(A179,LongLat!$A$2:$H$292,8,TRUE) -> 35.65271
A180: 207.4 | B180: Boulevard Trail | C180: 5695’ | D180: NC / TN | E180: Swain | F180: =VLOOKUP(A180,LongLat!$A$2:$H$292,7,TRUE) -> -83.3864 | G180: =VLOOKUP(A180,LongLat!$A$2:$H$292,8,TRUE) -> 35.62969
A181: 207.7 | B181: Icewater Spring Shelter (pic) | C181: 5920’ | D181: NC / TN | E181: Swain | F181: =VLOOKUP(A181,LongLat!$A$2:$H$292,7,TRUE) -> -83.3864 | G181: =VLOOKUP(A181,LongLat!$A$2:$H$292,8,TRUE) -> 35.62969 | H181: http://www.summitpost.org/view_object.php?object_id=73662&context_id=383841
A182: 208.5 | B182: Charlies Bunion | C182: 5905’ | D182: NC / TN | E182: Swain | F182: =VLOOKUP(A182,LongLat!$A$2:$H$292,7,TRUE) -> -83.368 | G182: =VLOOKUP(A182,LongLat!$A$2:$H$292,8,TRUE) -> 35.61451 | H182: http://www.summitpost.org/mountain/rock/152543/charlies-bunion.html
A183: 210.5 | B183: Porters Gap, The Sawteeth | C183: 5577’ | D183: NC / TN | E183: Swain | F183: =VLOOKUP(A183,LongLat!$A$2:$H$292,7,TRUE) -> -83.368 | G183: =VLOOKUP(A183,LongLat!$A$2:$H$292,8,TRUE) -> 35.61451
A184: 213.8 | B184: Bradley’s View | C184: 5200’ | D184: NC / TN | E184: Sevier | F184: =VLOOKUP(A184,LongLat!$A$2:$H$292,7,TRUE) -> -83.368 | G184: =VLOOKUP(A184,LongLat!$A$2:$H$292,8,TRUE) -> 35.61451
A185: 215.1 | B185: Peck’s Corner Shelter (pic) | C185: 5280’ | D185: NC / TN | E185: Sevier | F185: =VLOOKUP(A185,LongLat!$A$2:$H$292,7,TRUE) -> -83.3086 | G185: =VLOOKUP(A185,LongLat!$A$2:$H$292,8,TRUE) -> 35.65074 | H185: http://farm3.static.flickr.com/2248/2321483275_6e8698d052.jpg?v=0
A186: 217.8 | B186: Mt. Sequoyah | C186: 6069’ | D186: NC / TN | E186: Sevier | F186: =VLOOKUP(A186,LongLat!$A$2:$H$292,7,TRUE) -> -83.3086 | G186: =VLOOKUP(A186,LongLat!$A$2:$H$292,8,TRUE) -> 35.65074 | H186: http://commons.wikimedia.org/wiki/File:Mount-sequoyah-appalachian-trail.jpg
A187: 219.3 | B187: Mt. Chapman | C187: 6417’ | D187: NC / TN | E187: Sevier | F187: =VLOOKUP(A187,LongLat!$A$2:$H$292,7,TRUE) -> -83.2567 | G187: =VLOOKUP(A187,LongLat!$A$2:$H$292,8,TRUE) -> 35.69367 | H187: http://commons.wikimedia.org/wiki/File:Mount-chapman-north.jpg
A188: 220.3 | B188: Tri-Corner Knob Shelter (pic) | C188: 5920’ | D188: NC / TN | E188: Sevier | F188: =VLOOKUP(A188,LongLat!$A$2:$H$292,7,TRUE) -> -83.1865 | G188: =VLOOKUP(A188,LongLat!$A$2:$H$292,8,TRUE) -> 35.66592 | H188: http://commons.wikimedia.org/wiki/File:Tricorner-knob-shelter.jpg
A189: 221.5 | B189: Guyot Spur | C189: 6360’ | D189: NC / TN | E189: Sevier | F189: =VLOOKUP(A189,LongLat!$A$2:$H$292,7,TRUE) -> -83.1865 | G189: =VLOOKUP(A189,LongLat!$A$2:$H$292,8,TRUE) -> 35.66592
A190: 222.1 | B190: Guyot Spring | C190: 6150’ | D190: NC / TN | E190: Sevier | F190: =VLOOKUP(A190,LongLat!$A$2:$H$292,7,TRUE) -> -83.1865 | G190: =VLOOKUP(A190,LongLat!$A$2:$H$292,8,TRUE) -> 35.66592
A191: 222.2 | B191: Mt. Guyot side trail | C191: 6395’ | D191: NC / TN | E191: Sevier | F191: =VLOOKUP(A191,LongLat!$A$2:$H$292,7,TRUE) -> -83.1865 | G191: =VLOOKUP(A191,LongLat!$A$2:$H$292,8,TRUE) -> 35.66592 | H191: http://commons.wikimedia.org/wiki/File:Guyot-summit1.jpg
A192: 224.1 | B192: Snake Den Ridge Trail | C192: 5600’ | D192: NC / TN | E192: Sevier | F192: =VLOOKUP(A192,LongLat!$A$2:$H$292,7,TRUE) -> -83.1865 | G192: =VLOOKUP(A192,LongLat!$A$2:$H$292,8,TRUE) -> 35.66592 | H192: http://commons.wikimedia.org/wiki/File:Snake-den-ridge-trail-terminus1.jpg
A193: 227.5 | B193: Cosby Knob | C193: 5150’ | D193: NC / TN | E193: Sevier | F193: =VLOOKUP(A193,LongLat!$A$2:$H$292,7,TRUE) -> -83.1822 | G193: =VLOOKUP(A193,LongLat!$A$2:$H$292,8,TRUE) -> 35.72708 | H193: http://www.summitpost.org/mountain/rock/358475/cosby-ross-and-camel-back-knobs.html
A194: 228 | B194: Cosby Knob Shelter (pic) | C194: 4700’ | D194: NC / TN | E194: Sevier | F194: =VLOOKUP(A194,LongLat!$A$2:$H$292,7,TRUE) -> -83.1822 | G194: =VLOOKUP(A194,LongLat!$A$2:$H$292,8,TRUE) -> 35.72708 | H194: http://www.summitpost.org/view_object.php?object_id=357287&context_id=383841
A195: 230.8 | B195: Mt. Cammerer side trail | C195: 5000’ | D195: NC / TN | E195: Sevier | F195: =VLOOKUP(A195,LongLat!$A$2:$H$292,7,TRUE) -> -83.1822 | G195: =VLOOKUP(A195,LongLat!$A$2:$H$292,8,TRUE) -> 35.72708 | H195: http://www.summitpost.org/mountain/rock/153983/mount-cammerer.html
A196: 231.3 | B196: spring | C196: 4300’ | D196: NC / TN | E196: Sevier | F196: =VLOOKUP(A196,LongLat!$A$2:$H$292,7,TRUE) -> -83.1822 | G196: =VLOOKUP(A196,LongLat!$A$2:$H$292,8,TRUE) -> 35.72708
A197: 232.9 | B197: spring | C197: 3700’ | D197: NC / TN | E197: Sevier | F197: =VLOOKUP(A197,LongLat!$A$2:$H$292,7,TRUE) -> -83.1822 | G197: =VLOOKUP(A197,LongLat!$A$2:$H$292,8,TRUE) -> 35.72708
A198: 235.1 | B198: Davenport Gap Shelter (pic) | C198: 2600’ | D198: NC / TN | E198: Cocke | F198: =VLOOKUP(A198,LongLat!$A$2:$H$292,7,TRUE) -> -83.1237 | G198: =VLOOKUP(A198,LongLat!$A$2:$H$292,8,TRUE) -> 35.76922
A199: 236 | B199: Davenport Gap, GSMNP east boundary | C199: 1975’ | D199: NC / TN | E199: Cocke | F199: =VLOOKUP(A199,LongLat!$A$2:$H$292,7,TRUE) -> -83.1237 | G199: =VLOOKUP(A199,LongLat!$A$2:$H$292,8,TRUE) -> 35.76922
A200: 237.3 | B200: State Line Branch | C200: 1600’ | D200: NC / TN | E200: Cocke | F200: =VLOOKUP(A200,LongLat!$A$2:$H$292,7,TRUE) -> -83.1237 | G200: =VLOOKUP(A200,LongLat!$A$2:$H$292,8,TRUE) -> 35.76922
A201: 237.5 | B201: Pigeon River | C201: 1400’ | D201: NC / TN | E201: Cocke | F201: =VLOOKUP(A201,LongLat!$A$2:$H$292,7,TRUE) -> -83.1237 | G201: =VLOOKUP(A201,LongLat!$A$2:$H$292,8,TRUE) -> 35.76922
... 1314 more rows

Sheet LongLat
A1: Miles North | B1: Next Shelter North | C1: Elevation | D1: Fee | E1: Cap | F1: State | G1: Longitude | H1: Latitude | I1: Miles South | J1: Next Shelter South
A2: 0.2 | B2: 2.3 | C2: 3,730' | D2: No | E2: 12 | F2: Georgia | G2: -84.1931 | H2: 34.62915 | I2: 2174.4 | J2: 1.7
A3: 1.7 | B3: 1.7 | C3: 3,300' | D3: No | E3: 8 | F3: Georgia | G3: -84.1988 | H3: 34.61756 | I3: 0 | J3: 0 | L3: Original source for this data
A4: 2.5 | B4: 5.1 | C4: 2,870' | D4: No | E4: 6 | F4: Georgia | G4: -84.1999 | H4: 34.64945 | I4: 2172.1 | J4: 2.3 | L4: http://www.whiteblaze.net/cmps.php?page=shelters
A5: 7.6 | B5: 7.3 | C5: 3,200' | D5: No | E5: 12 | F5: Georgia | G5: -84.1364 | H5: 34.66583 | I5: 2167 | J5: 5.1
A6: 14.9 | B6: 11.9 | C6: 3,000' | D6: No | E6: 14 | F6: Georgia | G6: -84.0343 | H6: 34.6532 | I6: 2159.7 | J6: 7.3
A7: 26.8 | B7: 1.3 | C7: 3,600' | D7: No | E7: 7 | F7: Georgia | G7: -83.955 | H7: 34.73713 | I7: 2147.8 | J7: 11.9
A8: 28.1 | B8: 8.6 | C8: 4,450' | D8: No | E8: 8 | F8: Georgia | G8: -83.9375 | H8: 34.73996 | I8: 2146.5 | J8: 1.3
A9: 36.7 | B9: 4.4 | C9: 3,370' | D9: No | E9: 6 | F9: Georgia | G9: -83.8344 | H9: 34.71239 | I9: 2137.9 | J9: 8.6
A10: 41.1 | B10: 7.2 | C10: 3,050' | D10: No | E10: 7 | F10: Georgia | G10: -83.8247 | H10: 34.77618 | I10: 2133.5 | J10: 4.4
A11: 48.3 | B11: 7.7 | C11: 3,900’ | D11: No | E11: 7 | F11: Georgia | G11: -83.7668 | H11: 34.81711 | I11: 2126.3 | J11: 7.2
A12: 56 | B12: 7.1 | C12: 4,200' | D12: No | E12: 7 | F12: Georgia | G12: -83.6769 | H12: 34.80396 | I12: 2118.6 | J12: 7.7
A13: 63.1 | B13: 7.8 | C13: 3,350' | D13: No | E13: 12 | F13: Georgia | G13: -83.6462 | H13: 34.88235 | I13: 2111.5 | J13: 7.1
A14: 70.9 | B14: 7.3 | C14: 3,050' | D14: No | E14: 14 | F14: Georgia | G14: -83.5883 | H14: 34.94604 | I14: 2103.7 | J14: 7.8
A15: 78.2 | B15: 4.9 | C15: 4,600' | D15: No | E15: 8 | F15: North Carolina | G15: -83.5816 | H15: 35.02054 | I15: 2096.4 | J15: 7.3
A16: 83.1 | B16: 7.6 | C16: 4,760' | D16: No | E16: 8 | F16: North Carolina | G16: -83.5482 | H16: 35.04183 | I16: 2091.5 | J16: 4.9
A17: 90.7 | B17: 6.8 | C17: 4,540' | D17: No | E17: 6 | F17: North Carolina | G17: -83.4949 | H17: 34.99987 | I17: 2083.9 | J17: 7.6
A18: 90.7 | B18: 6.8 | C18: 4,540' | D18: No | E18: 8 | F18: North Carolina | G18: -83.4943 | H18: 34.9989 | I18: 2083.9 | J18: 6.8
A19: 97.5 | B19: 5.3 | C19: 4,940' | D19: No | E19: 8 | F19: North Carolina | G19: -83.4789 | H19: 35.05891 | I19: 2077.1 | J19: 6.8
A20: 102.8 | B20: 9 | C20: 3,760' | D20: No | E20: 8 | F20: North Carolina | G20: -83.5231 | H20: 35.09144 | I20: 2071.8 | J20: 5.3
A21: 110.3 | B21: 12.1 | C21: 4,600' | D21: No | E21: 8 | F21: North Carolina | G21: -83.5725 | H21: 35.14414 | I21: 2064.3 | J21: 9
A22: 122.4 | B22: 5.8 | C22: 4,920' | D22: No | E22: 6 | F22: North Carolina | G22: -83.5599 | H22: 35.2309 | I22: 2052.2 | J22: 12.1
A23: 128.2 | B23: 4.9 | C23: 4,115' | D23: No | E23: 8 | F23: North Carolina | G23: -83.5822 | H23: 35.28235 | I23: 2046.4 | J23: 5.8
A24: 133.1 | B24: 7.7 | C24: 2,300' | D24: No | E24: 6 | F24: North Carolina | G24: -83.5902 | H24: 35.32418 | I24: 2041.5 | J24: 4.9
A25: 140.8 | B25: 9.1 | C25: 4,330' | D25: No | E25: 14 | F25: North Carolina | G25: -83.667 | H25: 35.33068 | I25: 2033.8 | J25: 7.7
A26: 149.9 | B26: 6.1 | C26: 3,800' | D26: No | E26: 6 | F26: North Carolina | G26: -83.7339 | H26: 35.37424 | I26: 2024.7 | J26: 9.1
A27: 156 | B27: 6.6 | C27: 2,880' | D27: No | E27: 6 | F27: North Carolina | G27: -83.7736 | H27: 35.41522 | I27: 2018.6 | J27: 6.1
A28: 162.6 | B28: 11.3 | C28: 1,775' | D28: No | E28: 20 | F28: North Carolina | G28: -83.7941 | H28: 35.44833 | I28: 2012 | J28: 6.6
A29: 173.9 | B29: 2.5 | C29: 4,570' | D29: No | E29: 12 | F29: Tennessee | G29: -83.7936 | H29: 35.54578 | I29: 2000.7 | J29: 11.3
A30: 176.4 | B30: 2.9 | C30: 4,360' | D30: No | E30: 14 | F30: Tennessee | G30: -83.7666 | H30: 35.56174 | I30: 1998.2 | J30: 2.5
A31: 179.3 | B31: 6.3 | C31: 4,915' | D31: No | E31: 12 | F31: North Carolina | G31: -83.7327 | H31: 35.5618 | I31: 1996.3 | J31: 2.9
A32: 185.6 | B32: 5.5 | C32: 4,880' | D32: No | E32: 12 | F32: Tennessee | G32: -83.6419 | H32: 35.56625 | I32: 1989 | J32: 6.3
A33: 191.1 | B33: 1.7 | C33: 5,460' | D33: No | E33: 12 | F33: North Carolina | G33: -83.5683 | H33: 35.5642 | I33: 1983.5 | J33: 5.5
A34: 192.8 | B34: 6.3 | C34: 5,505' | D34: No | E34: 12 | F34: North Carolina | G34: -83.5429 | H34: 35.56517 | I34: 1981.8 | J34: 1.7
A35: 199.1 | B35: 7.5 | C35: 5,870' | D35: No | E35: 12 | F35: Tennessee | G35: -83.4714 | H35: 35.59374 | I35: 1975.5 | J35: 6.3
A36: 200 | B36: Off Trail | C36: 6,440' | D36: No | E36: 0 | F36: Tennessee | G36: -83.4338 | H36: 35.65271 | I36: Off Trail | J36: Off Trail
A37: 206.6 | B37: 7.4 | C37: 5,920' | D37: No | E37: 12 | F37: North Carolina | G37: -83.3864 | H37: 35.62969 | I37: 1968 | J37: 7.5
A38: 208 | B38: Off Trail | C38: 3,660' | D38: No | E38: 0 | F38: North Carolina | G38: -83.368 | H38: 35.61451 | I38: Off Trail | J38: Off Trail
A39: 214 | B39: 5.2 | C39: 5,280' | D39: No | E39: 12 | F39: North Carolina | G39: -83.3086 | H39: 35.65074 | I39: 1960.6 | J39: 7.4
A40: 219.2 | B40: 7.7 | C40: 5,920' | D40: No | E40: 12 | F40: North Carolina | G40: -83.2567 | H40: 35.69367 | I40: 1955.4 | J40: 5.2
A41: 220 | B41: Off Trail | C41: 5,420' | D41: No | E41: 0 | F41: North Carolina | G41: -83.1865 | H41: 35.66592 | I41: Off Trail | J41: Off Trail
A42: 226.9 | B42: 7.1 | C42: 4,700' | D42: No | E42: 12 | F42: North Carolina | G42: -83.1822 | H42: 35.72708 | I42: 1947.7 | J42: 7.7
A43: 234 | B43: 10.5 | C43: 2,600' | D43: No | E43: 12 | F43: Tennessee | G43: -83.1237 | H43: 35.76922 | I43: 1940.6 | J43: 7.1
A44: 244.5 | B44: 8.2 | C44: 2,850' | D44: No | E44: 6 | F44: North Carolina | G44: -83.0263 | H44: 35.78166 | I44: 1930.1 | J44: 10.5
A45: 252.7 | B45: 4.9 | C45: 3,530' | D45: No | E45: 8 | F45: North Carolina | G45: -82.9386 | H45: 35.82234 | I45: 1921.9 | J45: 8.2
A46: 257.6 | B46: 9.9 | C46: 4,260' | D46: No | E46: 6 | F46: Tennessee | G46: -82.9367 | H46: 35.83645 | I46: 1917 | J46: 4.9
A47: 267.5 | B47: 14.2 | C47: 2,330' | D47: No | E47: 5 | F47: North Carolina | G47: -82.8614 | H47: 35.87583 | I47: 1907.1 | J47: 9.9
A48: 281.7 | B48: 8.6 | C48: 3,300' | D48: No | E48: 5 | F48: Tennessee | G48: -82.7902 | H48: 35.95148 | I48: 1892.9 | J48: 14.2
A49: 290.3 | B49: 6.8 | C49: 3,620' | D49: No | E49: 5 | F49: North Carolina | G49: -82.7359 | H49: 36.01499 | I49: 1884.3 | J49: 8.6
A50: 297.1 | B50: 5.9 | C50: 4,150' | D50: No | E50: 6 | F50: North Carolina | G50: -82.6574 | H50: 36.05647 | I50: 1877.5 | J50: 6.8
A51: 303 | B51: 8.8 | C51: 3,570' | D51: No | E51: 8 | F51: North Carolina | G51: -82.5969 | H51: 36.03479 | I51: 1871.6 | J51: 5.9
A52: 311.8 | B52: 10 | C52: 4,255' | D52: No | E52: 6 | F52: North Carolina | G52: -82.5872 | H52: 35.96395 | I52: 1862.8 | J52: 8.8
A53: 321.8 | B53: 10.6 | C53: 5,100' | D53: No | E53: 10 | F53: Tennessee | G53: -82.4783 | H53: 36 | I53: 1852.8 | J53: 10
A54: 332.4 | B54: 10.5 | C54: 3,180' | D54: No | E54: 6 | F54: Tennessee | G54: -82.4336 | H54: 36.06677 | I54: 1842.2 | J54: 10.6
A55: 342.9 | B55: 12.2 | C55: 3,070' | D55: No | E55: 6 | F55: Tennessee | G55: -82.397 | H55: 36.10417 | I55: 1831.7 | J55: 10.5
A56: 355.1 | B56: 8.8 | C56: 3,900' | D56: No | E56: 6 | F56: Tennessee | G56: -82.2642 | H56: 36.12924 | I56: 1819.5 | J56: 12.2
A57: 363.9 | B57: 6.4 | C57: 4,400' | D57: No | E57: 10 | F57: Tennessee | G57: -82.1613 | H57: 36.14844 | I57: 1810.7 | J57: 8.8
A58: 370.3 | B58: 4.8 | C58: 6,275' | D58: No | E58: 15 | F58: Tennessee | G58: -82.1227 | H58: 36.10496 | I58: 1804.3 | J58: 6.4
A59: 375.1 | B59: 1.7 | C59: 5,050' | D59: No | E59: 6 | F59: North Carolina | G59: -82.0659 | H59: 36.11227 | I59: 1799.5 | J59: 4.8
A60: 376.8 | B60: 8.2 | C60: 4,550' | D60: No | E60: 20 | F60: North Carolina | G60: -82.0544 | H60: 36.12354 | I60: 1797.8 | J60: 1.7
A61: 385 | B61: 9 | C61: 3,000' | D61: No | E61: 6 | F61: Tennessee | G61: -82.0113 | H61: 36.17209 | I61: 1789.6 | J61: 8.2
A62: 394 | B62: 9.2 | D62: No | E62: 14 | F62: Tennessee | I62: 1798.6 | J62: 9
A63: 403.2 | B63: 8 | C63: 3815' | D63: No | E63: 6 | F63: Tennessee | G63: -82.0885 | H63: 36.22012 | I63: 1771.4 | J63: 9.2
A64: 411.2 | B64: 8.8 | C64: 2,450' | D64: No | E64: 8 | F64: Tennessee | G64: -82.1364 | H64: 36.27856 | I64: 1763.4 | J64: 8
A65: 420 | B65: 6.8 | C65: 2,130' | D65: No | E65: 6 | F65: Tennessee | G65: -82.1295 | H65: 36.31388 | I65: 1754.6 | J65: 8.8
A66: 426.8 | B66: 6.8 | C66: 3,620' | D66: No | E66: 6 | F66: Tennessee | G66: -82.059 | H66: 36.36694 | I66: 1747.8 | J66: 6.8
A67: 433.6 | B67: 7.6 | C67: 4,125' | D67: No | E67: 6 | F67: Tennessee | G67: -81.991 | H67: 36.43553 | I67: 1741 | J67: 6.8
A68: 441.2 | B68: 7 | C68: 4,060' | D68: No | E68: 6 | F68: Tennessee | G68: -81.9862 | H68: 36.50897 | I68: 1733.4 | J68: 7.6
A69: 448.2 | B69: 1.3 | C69: 3,840’ | D69: No | E69: 4 | F69: Tennessee | G69: -81.9204 | H69: 36.57215 | I69: 1726.4 | J69: 7
A70: 449.5 | B70: 19.4 | C70: 3,785' | D70: No | E70: 5 | F70: Tennessee | G70: -81.9022 | H70: 36.58101 | I70: 1725.1 | J70: 1.3
A71: 468.9 | B71: 6.4 | C71: 3,310' | D71: No | E71: 8 | F71: Virginia | G71: -81.7132 | H71: 36.6377 | I71: 1705.7 | J71: 19.4
A72: 475.3 | B72: 12.2 | C72: 3,360' | D72: No | E72: 8 | F72: Virginia | G72: -81.6563 | H72: 36.64406 | I72: 1699.3 | J72: 6.4
A73: 487.5 | B73: 5.1 | C73: 5,400' | D73: No | E73: 16 | F73: Virginia | G73: -81.5354 | H73: 36.65656 | I73: 1687.1 | J73: 12.2
A74: 492.6 | B74: 5.9 | C74: 4,460' | D74: No | E74: 8 | F74: Virginia | G74: -81.4986 | H74: 36.65392 | I74: 1682 | J74: 5.1
A75: 498.5 | B75: 3.9 | C75: 4,050' | D75: No | E75: 6 | F75: Virginia | G75: -81.5112 | H75: 36.68321 | I75: 1676.1 | J75: 5.9
A76: 502.4 | B76: 7.8 | C76: 3,850' | D76: No | E76: 8 | F76: Virginia | G76: -81.5095 | H76: 36.71535 | I76: 1672.2 | J76: 3.9
A77: 510.2 | B77: 2.4 | C77: 3,570' | D77: No | E77: 0 | F77: Virginia | G77: -81.472 | H77: 36.73092 | I77: 1664.4 | J77: 7.8
A78: 512.6 | B78: 10.6 | C78: 2,900' | D78: No | E78: 8 | F78: Virginia | G78: -81.4806 | H78: 36.74918 | I78: 1662 | J78: 2.4
A79: 523.2 | B79: 7.1 | C79: 3,360' | D79: No | E79: 16 | F79: Virginia | G79: -81.4226 | H79: 36.8094 | I79: 1651.4 | J79: 10.6
A80: 530.3 | B80: 7.2 | C80: 3,150' | D80: No | E80: 6 | F80: Virginia | G80: -81.3633 | H80: 36.84991 | I80: 1644.3 | J80: 7.1
A81: 537.5 | B81: 11.2 | C81: 2,840' | D81: No | E81: 12 | F81: Virginia | G81: -81.3769 | H81: 36.91444 | I81: 1637.1 | J81: 7.2
A82: 548.7 | B82: 9 | C82: 2,880' | D82: No | E82: 8 | F82: Virginia | G82: -81.4046 | H82: 37.00066 | I82: 1625.9 | J82: 11.2
A83: 557.7 | B83: 10 | C83: 4,409' | D83: No | E83: 8 | F83: Virginia | G83: -81.3995 | H83: 37.05769 | I83: 1616.9 | J83: 9
A84: 567.7 | B84: 13.8 | C84: 2,500' | D84: No | E84: 8 | F84: Virginia | G84: -81.2478 | H84: 37.09339 | I84: 1606.9 | J84: 10
A85: 581.5 | B85: 9.8 | C85: 3,090' | D85: No | E85: 6 | F85: Virginia | G85: -81.1044 | H85: 37.13262 | I85: 1593.1 | J85: 13.8
A86: 591.3 | B86: 14.2 | C86: 2,800' | D86: No | E86: 6 | F86: Virginia | G86: -80.9803 | H86: 37.15498 | I86: 1583.3 | J86: 9.8
A87: 605.5 | B87: 8.4 | C87: 2,640' | D87: No | E87: 8 | F87: Virginia | G87: -80.8241 | H87: 37.22394 | I87: 1569.1 | J87: 14.2
A88: 613.9 | B88: 14.9 | C88: 3,555' | D88: No | E88: 8 | F88: Virginia | G88: -80.8364 | H88: 37.27021 | I88: 1560.7 | J88: 8.4
A89: 628.8 | B89: 12.3 | C89: 3,375' | D89: No | E89: 7 | F89: Virginia | G89: -80.7586 | H89: 37.37479 | I89: 1545.8 | J89: 14.9
A90: 641.1 | B90: 3.9 | C90: 2,530' | D90: No | E90: 8 | F90: Virginia | G90: -80.6088 | H90: 37.42209 | I90: 1533.5 | J90: 12.3
A91: 645 | B91: 8.8 | C91: 3,525' | D91: No | E91: 6 | F91: Virginia | G91: -80.5772 | H91: 37.40086 | I91: 1529.6 | J91: 3.9
A92: 653.8 | B92: 5.8 | C92: 2,340' | D92: No | E92: 6 | F92: Virginia | G92: -80.474 | H92: 37.39754 | I92: 1520.8 | J92: 8.8
A93: 659.6 | B93: 6.4 | C93: 2,720' | D93: No | E93: 6 | F93: Virginia | G93: -80.4212 | H93: 37.35891 | I93: 1515 | J93: 5.8
A94: 666 | B94: 6 | C94: 3,000' | D94: No | E94: 6 | F94: Virginia | G94: -80.3352 | H94: 37.35545 | I94: 1508.6 | J94: 6.4
A95: 672 | B95: 9.9 | C95: 1,800' | D95: No | E95: 6 | F95: Virginia | G95: -80.2644 | H95: 37.38749 | I95: 1502.6 | J95: 6
A96: 681.9 | B96: 13.6 | C96: 1,845' | D96: No | E96: 6 | F96: Virginia | G96: -80.1911 | H96: 37.3881 | I96: 1492.7 | J96: 9.9
A97: 695.5 | B97: 1 | C97: 1,980' | D97: No | E97: 10 | F97: Virginia | G97: -80.0741 | H97: 37.38531 | I97: 1479.1 | J97: 13.6
A98: 696.5 | B98: 2.4 | C98: 2,145' | D98: No | E98: 6 | F98: Virginia | G98: -80.0574 | H98: 37.3882 | I98: 1478.1 | J98: 1
A99: 698.9 | B99: 6 | C99: 2,580' | D99: No | E99: 6 | F99: Virginia | G99: -80.0295 | H99: 37.39079 | I99: 1475.7 | J99: 2.4
A100: 704.9 | B100: 14.4 | C100: 2,080' | D100: No | E100: 6 | F100: Virginia | G100: -79.9878 | H100: 37.43456 | I100: 1469.7 | J100: 6
A101: 719.3 | B101: 6.2 | C101: 2,670' | D101: No | E101: 6 | F101: Virginia | G101: -79.8539 | H101: 37.39847 | I101: 1455.3 | J101: 14.4
A102: 725.5 | B102: 7.3 | C102: 1,830' | D102: No | E102: 6 | F102: Virginia | G102: -79.7857 | H102: 37.41926 | I102: 1449.1 | J102: 6.2
A103: 732.8 | B103: 6.4 | C103: 1,920' | D103: No | E103: 6 | F103: Virginia | G103: -79.7014 | H103: 37.4672 | I103: 1441.8 | J103: 7.3
A104: 739.2 | B104: 6.9 | C104: 1,925' | D104: No | E104: 6 | F104: Virginia | G104: -79.6511 | H104: 37.51171 | I104: 1435.4 | J104: 6.4
A105: 746.1 | B105: 5 | C105: 1,320' | D105: No | E105: 20 | F105: Virginia | G105: -79.5856 | H105: 37.53004 | I105: 1428.5 | J105: 6.9
A106: 751.1 | B106: 5.3 | C106: 3,145' | D106: No | E106: 6 | F106: Virginia | G106: -79.5472 | H106: 37.49391 | I106: 1423.5 | J106: 5
A107: 756.4 | B107: 12.4 | C107: 3,960' | D107: No | E107: 6 | F107: Virginia | G107: -79.5042 | H107: 37.52738 | I107: 1418.2 | J107: 5.3
A108: 768.8 | B108: 3.9 | C108: 835' | D108: No | E108: 6 | F108: Virginia | G108: -79.4135 | H108: 37.59945 | I108: 1405.8 | J108: 12.4
A109: 772.7 | B109: 8.8 | C109: 1,020' | D109: No | E109: 6 | F109: Virginia | G109: -79.3921 | H109: 37.613 | I109: 1401.9 | J109: 3.9
A110: 781.5 | B110: 9.5 | C110: 2,500' | D110: No | E110: 6 | F110: Virginia | G110: -79.3388 | H110: 37.67775 | I110: 1393.1 | J110: 8.8
A111: 791 | B111: 5.6 | C111: 1,395' | D111: No | E111: 6 | F111: Virginia | G111: -79.2682 | H111: 37.71023 | I111: 1383.6 | J111: 9.3
A112: 796.6 | B112: 10.2 | C112: 3,160' | D112: No | E112: 8 | F112: Virginia | G112: -79.2133 | H112: 37.74662 | I112: 1378 | J112: 536
A113: 806.8 | B113: 6.9 | C113: 3,770' | D113: No | E113: 8 | F113: Virginia | G113: -79.1551 | H113: 37.81893 | I113: 1367.8 | J113: 10.2
A114: 813.7 | B114: 7.4 | C114: 3,840' | D114: No | E114: 8 | F114: Virginia | G114: -79.0706 | H114: 37.81775 | I114: 1360.9 | J114: 6.9
A115: 821.1 | B115: 6.2 | C115: 1,800' | D115: No | E115: 6 | F115: Virginia | G115: -79.0012 | H115: 37.85641 | I115: 1353.5 | J115: 7.4
A116: 827.3 | B116: 16.1 | C116: 2,720' | D116: No | E116: 6 | F116: Virginia | G116: -78.9939 | H116: 37.88488 | I116: 1347.3 | J116: 6.2
A117: 843.4 | B117: 12 | C117: 1,700' | D117: No | E117: 10 | F117: Virginia | G117: -78.8839 | H117: 37.98564 | I117: 1331.2 | J117: 16.1
A118: 855.4 | B118: 13 | C118: 2,700' | D118: No | E118: 6 | F118: Virginia | G118: -78.7868 | H118: 38.08552 | I118: 1319.2 | J118: 12
A119: 868.4 | B119: 13.2 | C119: 2,645' | D119: No | E119: 6 | F119: Virginia | G119: -78.7427 | H119: 38.21408 | I119: 1306.2 | J119: 13
A120: 881.6 | B120: 8.2 | C120: 2,430' | D120: No | E120: 6 | F120: Virginia | G120: -78.646 | H120: 38.29055 | I120: 1293 | J120: 13.2
A121: 889.8 | B121: 12.4 | C121: 3,175' | D121: No | E121: 6 | F121: Virginia | G121: -78.5586 | H121: 38.33304 | I121: 1284.8 | J121: 8.2
A122: 902.2 | B122: 11.5 | C122: 3,110' | D122: No | E122: 6 | F122: Virginia | G122: -78.4707 | H122: 38.44408 | I122: 1272.4 | J122: 12.4
A123: 913.7 | B123: 15.3 | C123: 3,465' | D123: No | E123: 8 | F123: Virginia | G123: -78.4086 | H123: 38.55307 | I123: 1260.9 | J123: 11.5
A124: 929 | B124: 13.1 | C124: 2,690' | D124: No | E124: 8 | F124: Virginia | G124: -78.3192 | H124: 38.67657 | I124: 1245.6 | J124: 15.3
A125: 942.1 | B125: 10.5 | C125: 2,480' | D125: No | E125: 8 | F125: Virginia | G125: -78.2345 | H125: 38.76347 | I125: 1232.5 | J125: 13.1
A126: 952.6 | B126: 8.4 | C126: 1,900' | D126: No | E126: 6 | F126: Virginia | G126: -78.1639 | H126: 38.85039 | I126: 1222 | J126: 10.5
A127: 960.7 | B127: 5.5 | C127: 1,310' | D127: No | E127: 8 | F127: Virginia | G127: -78.0833 | H127: 38.88996 | I127: 1213.9 | J127: 8.4
A128: 966.2 | B128: 4.4 | C128: 1,655' | D128: No | E128: 6 | F128: Virginia | G128: -78.0331 | H128: 38.93059 | I128: 1208.4 | J128: 5.5
A129: 970.6 | B129: 8.4 | C129: 1,230' | D129: No | E129: 4 | F129: Virginia | G129: -77.997 | H129: 38.96992 | I129: 1204 | J129: 4.4
A130: 979 | B130: 6.9 | C130: 840' | D130: No | E130: 8 | F130: Virginia | G130: -77.9444 | H130: 39.04782 | I130: 1195.6 | J130: 84
A131: 985.9 | B131: 14.3 | C131: 990' | D131: No | E131: 6 | F131: Virginia | G131: -77.8866 | H131: 39.09064 | I131: 1188.7 | J131: 6.9
A132: 1000 | B132: 15.8 | C132: 1,430' | D132: No | E132: 6 | F132: Virginia | G132: -77.7795 | H132: 39.22718 | I132: 1174.6 | J132: 14.3
A133: 1015.8 | B133: 4.1 | C133: 650' | D133: No | E133: 12 | F133: Maryland | G133: -77.6643 | H133: 39.35645 | I133: 1158.8 | J133: 15.8
A134: 1019.9 | B134: 5 | C134: 1,000' | D134: No | E134: 6 | F134: Maryland | G134: -77.6376 | H134: 39.41253 | I134: 1154.7 | J134: 4.1
A135: 1024.9 | B135: 7.5 | C135: 970' | D135: No | E135: 4 | F135: Maryland | G135: -77.6314 | H135: 39.46081 | I135: 1149.7 | J135: 5
A136: 1032.4 | B136: 8.2 | C136: 1,360' | D136: No | E136: 5 | F136: Maryland | G136: -77.6024 | H136: 39.5425 | I136: 1142.2 | J136: 7.5
A137: 1040.6 | B137: 4.9 | C137: 1,430' | D137: No | E137: 8 | F137: Maryland | G137: -77.5576 | H137: 39.62774 | I137: 1134 | J137: 8.2
A138: 1045.5 | B138: 9.6 | C138: 1,480' | D138: No | E138: 7 | F138: Maryland | G138: -77.5246 | H138: 39.67203 | I138: 1129.1 | J138: 4.9
A139: 1055.1 | B139: 2.4 | C139: 1,420' | D139: No | E139: 4+4 | F139: Pennsylvania | G139: -77.4852 | H139: 39.76619 | I139: 1119.5 | J139: 9.6
A140: 1057.5 | B140: 1.2 | C140: 890' | D140: No | E140: 6 | F140: Pennsylvania | G140: -77.483 | H140: 39.79381 | I140: 1117.1 | J140: 2.4
A141: 1058.7 | B141: 6.6 | C141: 1,120' | D141: No | E141: 4+4 | F141: Pennsylvania | G141: -77.4783 | H141: 39.805 | I141: 1115.9 | J141: 1.2
A142: 1065.3 | B142: 5.6 | C142: 1,520' | D142: No | E142: 4+4 | F142: Pennsylvania | G142: -77.5009 | H142: 39.86856 | I142: 1109.3 | J142: 6.6
A143: 1070.9 | B143: 7.4 | C143: 1,455' | D143: No | E143: 4+4 | F143: Pennsylvania | G143: -77.4867 | H143: 39.93196 | I143: 1103.7 | J143: 5.6
A144: 1078.3 | B144: 6.2 | C144: 1,795' | D144: No | E144: 8 | F144: Pennsylvania | G144: -77.4207 | H144: 39.98459 | I144: 1096.3 | J144: 7.4
A145: 1084.5 | B145: 10.9 | C145: 1,300' | D145: No | E145: 4+4 | F145: Pennsylvania | G145: -77.3573 | H145: 40.03429 | I145: 1090.1 | J145: 6.2
A146: 1095.4 | B146: 8.3 | C146: 805' | D146: No | E146: 9 | F146: Pennsylvania | G146: -77.2064 | H146: 40.06297 | I146: 1079.2 | J146: 10.9
A147: 1103.7 | B147: 18.2 | C147: 850' | D147: No | E147: 7 | F147: Pennsylvania | G147: -77.1043 | H147: 40.11192 | I147: 1070.9 | J147: 8.3
A148: 1121.9 | B148: 7.3 | C148: 1,170' | D148: No | E148: 5 | F148: Pennsylvania | G148: -77.0874 | H148: 40.30198 | I148: 1052.7 | J148: 18.2
A149: 1129.2 | B149: 8.6 | C149: 1,120' | D149: No | E149: 8 | F149: Pennsylvania | G149: -77.0678 | H149: 40.36346 | I149: 1045.4 | J149: 7.3
A150: 1137.8 | B150: 6.8 | C150: 1,060' | D150: No | E150: 8 | F150: Pennsylvania | G150: -76.994 | H150: 40.39222 | I150: 1036.8 | J150: 8.6
A151: 1144.6 | B151: 17.5 | C151: 1,180' | D151: No | E151: 12 | F151: Pennsylvania | G151: -76.8797 | H151: 40.42579 | I151: 1030 | J151: 6.8
A152: 1162.1 | B152: 13.3 | C152: 970' | D152: No | E152: 12 | F152: Pennsylvania | G152: -76.6005 | H152: 40.49853 | I152: 1012.5 | J152: 17.5
A153: 1175.4 | B153: 4.1 | C153: 1,300' | D153: No | E153: 16 | F153: Pennsylvania | G153: -76.4144 | H153: 40.4956 | I153: 999.2 | J153: 13.3
A154: 1179.5 | B154: 15.1 | C154: 1,460' | D154: No | E154: 12 | F154: Pennsylvania | G154: -76.3469 | H154: 40.51251 | I154: 995.1 | J154: 4.1
A155: 1194.6 | B155: 14.7 | C155: 1,510' | D155: No | E155: 8 | F155: Pennsylvania | G155: -76.1527 | H155: 40.54929 | I155: 980 | J155: 15.1
A156: 1209.3 | B156: 9.1 | C156: 880' | D156: No | E156: 8 | F156: Pennsylvania | G156: -75.9423 | H156: 40.59029 | I156: 965.3 | J156: 14.7
A157: 1218.4 | B157: 7.4 | C157: 535' | D157: No | E157: 6 | F157: Pennsylvania | G157: -75.9588 | H157: 40.63284 | I157: 956.2 | J157: 9.1
A158: 1225.8 | B158: 10 | C158: 1,350' | D158: No | E158: 8 | F158: Pennsylvania | G158: -75.8744 | H158: 40.68306 | I158: 948.8 | J158: 7.4
A159: 1235.8 | B159: 6.8 | C159: 1,380' | D159: No | E159: 6 | F159: Pennsylvania | G159: -75.7274 | H159: 40.75412 | I159: 938.8 | J159: 10
A160: 1242.6 | B160: 16.7 | C160: 1,000' | D160: No | E160: 6 | F160: Pennsylvania | G160: -75.6183 | H160: 40.78249 | I160: 932 | J160: 6.8
A161: 1259.3 | B161: 13.8 | C161: 1,410' | D161: No | E161: 8 | F161: Pennsylvania | G161: -75.3598 | H161: 40.83935 | I161: 915.3 | J161: 16.7
A162: 1273.1 | B162: 31.2 | C162: 1,480' | D162: No | E162: 6 | F162: Pennsylvania | G162: -75.1869 | H162: 40.9367 | I162: 901.5 | J162: 13.8
A163: 1304.3 | B163: 6.6 | C163: 1,110' | D163: No | E163: 5 | F163: New Jersey | G163: -74.8382 | H163: 41.1532 | I163: 870.3 | J163: 31.2
A164: 1310.9 | B164: 5.8 | C164: 1,320' | D164: No | E164: 8 | F164: New Jersey | G164: -74.7531 | H164: 41.19939 | I164: 863.7 | J164: 6.6
A165: 1316.7 | B165: 2.9 | C165: 1,425' | D165: No | E165: 8 | F165: New Jersey | G165: -74.6868 | H165: 41.25212 | I165: 857.9 | J165: 5.8
A166: 1319.6 | B166: 4.3 | C166: 1,345' | D166: No | E166: 6 | F166: New Jersey | G166: -74.6785 | H166: 41.27747 | I166: 855 | J166: 2.9
A167: 1323.9 | B167: 12.4 | C167: 1,280' | D167: No | E167: 8 | F167: New Jersey | G167: -74.6438 | H167: 41.32775 | I167: 850.7 | J167: 4.3
A168: 1336.3 | B168: 11.8 | C168: 840' | D168: No | E168: 6 | F168: New Jersey | G168: -74.5163 | H168: 41.27167 | I168: 838.3 | J168: 12.4
A169: 1348.1 | B169: 12 | C169: 1,200' | D169: No | E169: 6 | F169: New Jersey | G169: -74.3985 | H169: 41.20219 | I169: 826.5 | J169: 11.8
A170: 1360.1 | B170: 14.3 | C170: 1,180' | D170: No | E170: 8 | F170: New York | G170: -74.2683 | H170: 41.26835 | I170: 814.5 | J170: 12
A171: 1374.4 | B171: 5.3 | C171: 1,300' | D171: No | E171: 8 | F171: New York | G171: -74.1044 | H171: 41.26328 | I171: 800.2 | J171: 14.3
A172: 1379.7 | B172: 3.1 | C172: 1,070' | D172: No | E172: 8 | F172: New York | G172: -74.0599 | H172: 41.2797 | I172: 794.9 | J172: 5.3
A173: 1382.8 | B173: 31 | C173: 1,240' | D173: No | E173: 8 | F173: New York | G173: -74.0111 | H173: 41.2841 | I173: 791.8 | J173: 3.1
A174: 1413.8 | B174: 9 | C174: 360' | D174: No | E174: 6 | F174: New York | G174: -73.7929 | H174: 41.51438 | I174: 760.8 | J174: 31
A175: 1422.8 | B175: 7.6 | C175: 1,285' | D175: No | E175: 6 | F175: New York | G175: -73.6921 | H175: 41.56455 | I175: 751.8 | J175: 9
A176: 1430.4 | B176: 9 | C176: 910' | D176: No | E176: 6 | F176: New York | G176: -73.6193 | H176: 41.60427 | I176: 744.2 | J176: 7.6
A177: 1439.4 | B177: 4 | C177: 740' | D177: No | E177: 6 | F177: New York | G177: -73.5327 | H177: 41.63775 | I177: 735.2 | J177: 9
A178: 1443.4 | B178: 8.4 | C178: 290' | D178: No | E178: 6 | F178: Connecticut | G178: -73.5099 | H178: 41.66507 | I178: 731.2 | J178: 4
A179: 1451.8 | B179: 7.3 | C179: 655' | D179: No | E179: 6 | F179: Connecticut | G179: -73.4967 | H179: 41.73165 | I179: 722.8 | J179: 8.4
A180: 1459.1 | B180: 10 | C180: 425' | D180: No | E180: 6 | F180: Connecticut | G180: -73.4198 | H180: 41.7786 | I180: 715.5 | J180: 7.3
A181: 1469.1 | B181: 12.3 | C181: 1,075' | D181: No | E181: 6 | F181: Connecticut | G181: -73.3921 | H181: 41.88163 | I181: 705.5 | J181: 10
A182: 1481.4 | B182: 7.5 | C182: 980' | D182: No | E182: 6 | F182: Connecticut | G182: -73.3923 | H182: 41.97513 | I182: 693.2 | J182: 12.3
A183: 1488.9 | B183: 1.2 | C183: 1,610' | D183: No | E183: 6 | F183: Connecticut | G183: -73.4477 | H183: 42.01458 | I183: 685.7 | J183: 7.5
A184: 1490.1 | B184: 8.8 | C184: 1,705' | D184: No | E184: 6 | F184: Connecticut | G184: -73.4536 | H184: 42.02833 | I184: 684.5 | J184: 1.2
A185: 1498.9 | B185: 0.1 | C185: 1,880' | D185: No | E185: 10 | F185: Massachusetts | G185: -73.429 | H185: 42.1099 | I185: 675.7 | J185: 8.8
A186: 1499 | B186: 14.3 | C186: 1,885' | D186: No | E186: 6 | F186: Massachusetts | G186: -73.4283 | H186: 42.11114 | I186: 675.6 | J186: 0.1
A187: 1513.3 | B187: 5.3 | C187: 1,540' | D187: No | E187: 10 | F187: Massachusetts | G187: -73.3062 | H187: 42.16483 | I187: 661.3 | J187: 14.3
A188: 1518.6 | B188: 1.8 | C188: 1,720' | D188: No | E188: 6 | F188: Massachusetts | G188: -73.2685 | H188: 42.20781 | I188: 656 | J188: 5.3
A189: 1520.4 | B189: 14 | C189: 1,950' | D189: No | E189: 10 | F189: Massachusetts | G189: -73.2506 | H189: 42.22102 | I189: 654.2 | J189: 1.8
A190: 1534.4 | B190: 8.8 | C190: 1,483' | D190: Yes | E190: 14 | F190: Massachusetts | G190: -73.1813 | H190: 42.28865 | I190: 640.2 | J190: 14
A191: 1543.2 | B191: 8.8 | C191: 1,930' | D191: No | E191: 12 | F191: Massachusetts | G191: -73.1545 | H191: 42.35487 | I191: 631.4 | J191: 8.8
A192: 1552 | B192: 16.7 | C192: 1,860' | D192: No | E192: 10 | F192: Massachusetts | G192: -73.1619 | H192: 42.4525 | I192: 622.6 | J192: 8.8
A193: 1568.7 | B193: 3.3 | C193: 2,800' | D193: No | E193: 10 | F193: Massachusetts | G193: -73.1845 | H193: 42.60855 | I193: 605.9 | J193: 16.7
A194: 1569 | B194: Off Trail | D194: No | E194: 0 | F194: Massachusetts | G194: -73.1673 | H194: 42.62521 | I194: Off Trail | J194: Off Trail
A195: 1570 | B195: Off Trail | D195: No | E195: 0 | F195: Massachusetts | G195: -73.194 | H195: 42.62935 | I195: Off Trail | J195: Off Trail
A196: 1572 | B196: 3.3 | C196: 3,491' | D196: Yes | E196: 0 | F196: Massachusetts | G196: -73.1678 | H196: 42.63689 | I196: 602.6 | J196: 3.3
A197: 1573 | B197: Off Trail | D197: No | E197: 0 | F197: Massachusetts | G197: -73.1547 | H197: 42.6441 | I197: Off Trail | J197: Off Trail
A198: 1575.3 | B198: 9.9 | C198: 2,300' | D198: No | E198: 8 | F198: Massachusetts | G198: -73.1698 | H198: 42.66848 | I198: 599.3 | J198: 3.3
A199: 1585.2 | B199: 7.2 | C199: 2,180' | D199: No | E199: 8 | F199: Vermont | G199: -73.1376 | H199: 42.77184 | I199: 589.4 | J199: 9.9
A200: 1592.4 | B200: 5.9 | C200: 2,060' | D200: No | E200: 8 | F200: Vermont | G200: -73.1104 | H200: 42.84805 | I200: 582.2 | J200: 7.2
... 93 more rows
